{"text_format":"1","workbook":"xlsx","n_sheets":22,"sheets":["COVER","INDEX","Basic Instructions","GETTING STARTED","Footnotes list","Metadata sheet","EFA A 1a","EFA A 1b","EFA A 2a","EFA A 2b","EFA B 1","EFA B 2","EFA B 3a","EFA B 3b","EFA C 1a","EFA C 1b","ErrorLog","Changelog","Lists","Mandatory","Summations","MustNotBeNegative"],"not_rendered":{"charts":0,"images":3,"macros":1,"external_links":0,"defined_names":2,"comments":0,"pivot_tables":0},"unopened":[],"bounds":{"document_bytes":16777216,"sheet_cells":100000,"rows_first":2000,"rows_last":500,"rows_between":2000,"halvings":0,"cell_chars":16384,"cell_head_chars":4096},"cells_cut":0,"cells_raw":0,"read":"whole","date_system":"1900"}

{"sheet":"COVER","index":0,"n_rows":9,"n_cols":3,"rows_kept":9,"cut":false,"hidden":false,"merged":[]}
[]
[]
[null,null,{"$f":"UPPER(Lists!K3)","v":"STATISTICAL OFFICE OF THE EUROPEAN UNION"}]
[]
[null,null,{"$f":"Lists!K4","v":"Directorate E: Sectoral and regional statistics"}]
[null,null,{"$f":"Lists!K5","v":"Unit E-2: Environmental statistics and accounts; sustainable development"}]
[null,null,{"$f":"UPPER(Lists!K7)","v":"EUROPEAN FOREST ACCOUNTS"}]
[null,null,{"$f":"CONCATENATE(Lists!K8,\" DATA COLLECTION\")","v":"2022 DATA COLLECTION"}]
[null,null,{"$f":"CONCATENATE(\"Launching date: \",Lists!K9)","v":"Launching date: 21 June 2022"}]

{"sheet":"INDEX","index":1,"n_rows":34,"n_cols":5,"rows_kept":34,"cut":false,"hidden":false,"merged":[[12,2,12,4],[1,2,1,4],[3,2,3,4],[4,2,4,4],[6,2,6,4],[8,2,8,4]]}
[]
[]
[null,null,null,null,{"$f":"UPPER(Lists!K3)","v":"STATISTICAL OFFICE OF THE EUROPEAN UNION"}]
[null,null,{"$f":"UPPER(Lists!K7)","v":"EUROPEAN FOREST ACCOUNTS"}]
[null,null,{"$f":"CONCATENATE(Lists!K8,\" DATA COLLECTION\")","v":"2022 DATA COLLECTION"}]
[]
[null,null," INDEX - STRUCTURE OF THE QUESTIONNAIRE"]
[]
[null,null,"I. Basic information"]
[null,null,"TITLE","DESCRIPTION","TYPE"]
[null,null,"Index","Structure of the questionnaire","for information"]
[null,null,"Basic instructions ","Basic instructions","for reading before filling in the questionnaire"]
[null,null,"II. Reporting data (To be filled in by the country)"]
[null,null,"TITLE","DESCRIPTION","TYPE"]
[null,null,"GETTING STARTED","Country and data collection definition. Administrative data.","For filling in"]
[null,null,"Footnotes list","List of country-specific explanatory footnotes","For filling in"]
[null,null,"Metadata sheet","National EFA metadata information","For filling in"]
[null,null,"TABLE A 1 - WOODED LAND"]
[null,null,"EFA A 1a","Area of wooded land, in 1000 ha","Core Table - For filling in"]
[null,null,"A 1b","Area of wooded land, in million national currency","For filling in"]
[null,null,"TABLE A2 - TIMBER"]
[null,null,"EFA A 2a","Timber on wooded land, in 1000 m3 over bark","Core Table - For filling in"]
[null,null,"EFA A 2b","Timber on wooded land, in million national currency ","Core Table - For filling in"]
[null,null,"TABLE B1 - ECONOMIC AGGREGATES OF THE FORESTRY AND LOGGING INDUSTRY"]
[null,null,"EFA B 1 ","Economic aggregates of the forestry and logging industry","Core Table - For filling in"]
[null,null,"TABLE B2 - OUTPUT OF THE FORESTRY AND LOGGING INDUSTRY BY  TYPE"]
[null,null,"EFA B 2","Output of the forestry and logging industry by economic type and institutional producing sector","For filling in. "]
[null,null,"TABLE B3 - MONETARY SUPPLY AND USE OF WOOD IN THE ROUGH"]
[null,null,"EFA B 3a","Supply of wood in the rough by all industries, in million national currency","For filling in. "]
[null,null,"EFA B 3b","Use of wood in the rough by all industries, in million national currency","For filling in. "]
[null,null,"TABLES C1 - PHYSICAL SUPPLY AND USE OF WOOD IN THE ROUGH"]
[null,null,"EFA C 1a","Supply of wood in the rough by all industries, in 1000 m3 over bark","For filling in"]
[null,null,"EFA C 1b","Use of wood in the rough by all industries, in 1000 m3 over bark","For filling in. "]
[null,null,"ErrorLog","Validation result. List of errors and warnings revealed by the validation process","For consultation"]

{"sheet":"Basic Instructions","index":2,"n_rows":104,"n_cols":6,"rows_kept":104,"cut":false,"hidden":false,"merged":[[73,2,73,5],[34,2,34,5],[39,2,39,5],[24,2,24,5],[60,2,60,5],[61,2,61,5],[64,2,64,5],[65,3,65,5],[71,2,71,5],[30,2,30,5],[51,2,51,5],[52,2,52,5],[53,2,53,5],[55,2,55,5],[72,2,72,5],[103,2,103,5],[97,2,97,5],[99,2,99,5],[100,2,100,5],[102,2,102,5],[92,2,92,5],[26,2,26,5],[44,2,44,5],[32,2,32,5],[33,2,33,5],[75,2,75,5],[90,2,90,5],[77,2,77,5],[48,2,48,5],[35,2,35,5],[79,2,79,5],[81,2,81,5],[84,2,84,5],[86,2,86,5],[56,2,56,5],[59,2,59,5],[14,2,14,5],[22,2,22,5],[23,2,23,5],[3,2,3,5],[4,2,4,5],[6,2,6,5],[8,2,8,5],[9,2,9,5],[10,2,10,5],[11,2,11,5],[12,2,12,5],[13,2,13,5],[15,2,15,5],[19,2,19,5],[20,2,20,5],[21,2,21,5]]}
[]
[]
[null,null,null,null,null,{"$f":"UPPER(Lists!K3)","v":"STATISTICAL OFFICE OF THE EUROPEAN UNION"}]
[null,null,{"$f":"UPPER(Lists!K7)","v":"EUROPEAN FOREST ACCOUNTS"}]
[null,null,{"$f":"CONCATENATE(Lists!K8,\" DATA COLLECTION\")","v":"2022 DATA COLLECTION"}]
[]
[null,null,"BASIC INSTRUCTIONS"]
[]
[null,null,"Before filling in the questionnaire please read carefully the instructions below. "]
[null,null,"This EXCEL workbook is the questionnaire. "]
[null,null,"VERY IMPORTANT: Please do not delete or add rows to any of the tables in this questionnaire"]
[null,null,"Should you need more space to fill in the textual cells (Data sources, Comments on the compilation of the table, etc) please make the rows higher to expand the text area."]
[null,null,"Table of contents"]
[null,null,"1. How to fill in the data sheets of the questionnaire"]
[null,null,"    1.1 Priority data"]
[null,null,"    1.2 Reporting conventions"]
[null,null,"    1.3 Data sources"]
[null,null,"    1.4 Built-in consistency checks"]
[null,null,"    1.5 Metadata sheet"]
[null,null,"2. Flags"]
[null,null,"    2.1 Standard footnotes"]
[null,null,"    2.2 Country-specific explanatory footnotes"]
[null,null,"3. Definitions"]
[null,null,"4. Data transmission"]
[null,null,"5. Methodology and questions"]
[]
[null,null,"1 -  How to fill in the data sheets of the questionnaire"]
[]
[null,null,"1.1 Priority data"]
[]
[null,null,"The tabs for core tables are highlighted in green."]
[null,null,"In each table:."]
[null,null,"    '- Cells shaded in grey are priority information to be reported. Please fill in these cells first."]
[null,null,"    '- White cells are lower priority information."]
[null,null,"    '- Dotted cells are automatically calculated by means of formulas."]
[null,null," Please do not modify the formulas provided in the table. "]
[]
[null,null,"1.2 Reporting conventions"]
[]
[null,null,"Report any real zeros and leave cell empty if you have no data - do not write text in data cells; instead please put it into the comments box below each table. "]
[null,null,"Description","Symbol"]
[null,null,"Real zero",0]
[null,null,"Not available",null," (blank/empty cell)"]
[]
[null,null,"It is possible to insert decimal numbers. Please notice Eurostat will publish only up top two decimal places"]
[]
[null,null,"1.3 Data sources"]
[]
[null,null,"Below each table, there is a box called 'Data sources'. Please provide information on the sources you used to compile the data in the table. "]
[]
[null,null,"1.4 Built-in consistency checks"]
[null,null,"The questionnaire has built-in automated checks to verify internal consistency of reported data (e.g. sums across rows and columns, as applicable), using macro functions."]
[null,null,"The checks are activated separately for each worksheet of the questionnaire, clicking on the button 'Validate questionnaire' in the header of each EFA Table. Cells with consistency issues will be highlighted with red colour and the issues will be explained in the last worksheet 'ErrorLog'. Please run the automated checks and correct any identified consistency issues before submitting the questionnaire to Eurostat. After correcting the values, you may remove the red colour using button 'Restore table colour'."]
[null,null,"To run the consistency checks it is crucial that macros are enabled in the questionnaire. This can be done via button 'Enable Content' in the yellow bar in the top part of the excel file."]
[null,null,"1.5 Metadata sheet"]
[null,null,"The questionnaire contains a first draft 'Metadata sheet' (to be further developed in the coming years, to become a regular component of data reporting) and we invite countries to fill it in. If you are submitting data for multiple reference years, i.e. multiple questionnaires, and the metadata information are identical for all of them, you may only fill in the ‘Metadata worksheet’ in the questionnaire for reference year 2020 and insert a comment ‘See metadata information in the questionnaire for reference year 2020’ at the bottom of  ‘Metadata worksheets’ of all other questionnaires submitted for this data collection."]
[null,null,"2. Flags"]
[]
[]
[null,null,"Flags (footnote symbols) should be entered in the reporting tables in the footnote columns, next to the value cell. There are two types of footnotes: "]
[null,null,"- Letters for standard footnotes (as defined by Eurostat)"]
[null,null,"- Numbers for country-specific footnotes (to be defined by the data compilers). "]
[]
[null,null,"2.1 Standard footnotes"]
[null,null,"The following footnotes will be used for the automatic data processing and data dissemination. Hence, they cannot be changed:"]
[null,null,"B) break in series","Please use this flag when the reported figure cannot be compared to the data reported for the previous year, e.g. because of new methods or sources being used or when you move from the old calculation rules to the new calculation rules. Please use this flag only when the change in methods, sources or calculation rules has a substantial impact."]
[null,null,"E) estimated data"]
[null,null,"P) provisional"]
[null,null,"To include standard footnotes use the drop-down menu. "]
[]
[null,null,"2.2 Country-specific explanatory footnotes"]
[null,null,"The country-specific footnotes can be used for any meaning beyond the pre-defined footnotes."]
[null,null,"To include a country-specific footnote, please first insert the text in the “Footnote list” sheet starting from number 1. Then in the data table please select the corresponding footnote reference number from the drop-down menu in the footnote column next to the value cell. The text you entered in the “Footnote list” sheet will then appear automatically next to the footnote reference number. The same explanatory footnote can be chosen for all the values for which the same explanation applies. If by mistake a number is chosen from the drop-down menu, it is sufficient to press the key delete to clean the cell."]
[null,null,"Please do not report footnotes that elaborate on e.g. source data and compilation methods; these are to be described in the quality report and the metadata sheets. "]
[]
[null,null,"3. Definitions"]
[]
[null,null,"The forest asset definitions of stocks and flows are those of SEEA Central Framework and the SEEA for Agriculture, Forestry and Fisheries, FAO/FRA 2015, the CPA Ver. 2.1 (2015) and the JFSQ 2020.  "]
[]
[null,null,"The economic and accounting definitions are those of SNA 2008, ESA 2010, NACE Rev. 2 (2008) and the CPA Ver. 2.1 (2015).     "]
[]
[null,null,"4. Data transmission"]
[]
[]
[null,null,"The standard tool for the transmission of statistical data is the eDAMIS system. The system creates a secure environment for the transmission of data, it records all data submissions and acknowledges the data delivery. The eDAMIS system has been installed in the National Statistical Institutes."]
[]
[null,null,"Please submit this questionnaire to Eurostat using the eDAMIS reporting system. Use the following details: "]
[null,null,"Domain name:",{"$f":"Lists!K12","v":"EFA"}]
[null,null,"Dataset name:",{"$f":"Lists!K13","v":"EFA_ACC_A"}]
[]
[null,null,"The completed workbook is to be returned via https://webgate.ec.europa.eu/edamis, the secure eDAMIS system, indicating the domain “EFA” and the dataset “EFA_ACC_A”. Please enter in the eDAMIS field “year” the reference year for which the data are reported for, not the current calendar year nor the current data collection year. (i.e. if you are submitting dataset for reference years 2019, 2018 and 2017, please enter in the eDAMIS field “year” these reference years for each dataset respectively.\nAccess the system with your CIRCABC User-ID and password. After filling all dataset details, eDAMIS will automatically name submitted EFA files as \"EFA_ACC_A_cc_yyyy_V00x\" where cc is the country code, yyyy the reference year and x the version. \n"]
[]
[null,null,"Should you have any questions regarding data transmission do not hesitate to contact your local eDAMIS coordinator or the Eurostat eDAMIS helpdesk at: "]
[null,null,"   web page:",{"$f":"Lists!K14","v":"https://webgate.ec.europa.eu/edamis/helpcenter/website/index.htm"}]
[null,null,"   e-mail address:",{"$f":"Lists!K15","v":"estat-support-edamis@ec.europa.eu"}]
[null,null,"   telephone:",{"$f":"Lists!K17","v":"(+352) 4301 33213"}]
[]
[null,null,"5. Methodology and questions"]
[]
[null,null,{"$f":"CONCATENATE(\"The guidelines to report on \", Lists!K7,\" are available on Eurostat website:\")","v":"The guidelines to report on European Forest Accounts are available on Eurostat website:"}]
[null,null,{"$f":"Lists!K19","v":"http://ec.europa.eu/eurostat/web/forestry/methodology"}]
[]
[null,null,"If you have questions, please send them to the following email addresses:"]
[null,null,{"$f":"Lists!K18","v":"ESTAT-FORESTACCOUNTS@EC.EUROPA.EU"}]

{"sheet":"GETTING STARTED","index":3,"n_rows":24,"n_cols":7,"rows_kept":24,"cut":false,"hidden":false,"merged":[[18,3,18,6],[20,3,20,6],[22,3,22,6],[23,2,23,6],[3,2,3,6],[4,2,4,6],[6,2,6,6],[12,2,12,6],[14,3,14,6],[16,3,16,6],[8,2,8,3]]}
[]
[]
[null,null,null,null,null,null,{"$f":"UPPER(Lists!K3)","v":"STATISTICAL OFFICE OF THE EUROPEAN UNION"}]
[null,null,{"$f":"UPPER(Lists!K7)","v":"EUROPEAN FOREST ACCOUNTS"}]
[null,null,{"$f":"CONCATENATE(Lists!K8,\" DATA COLLECTION\")","v":"2022 DATA COLLECTION"}]
[]
[null,null," GETTING STARTED"]
[]
[null,null,"Please select your country (click on the white cell):    ",null,null,null,{"$f":"IF(E9=\"\",\"\",VLOOKUP(E9,Lists!A2:B40,2,FALSE))","v":""}]
[null,null,"Reference year:    ",null,null,null,"Please return a separate questionnaire for each reference year when submitting data."]
[null,null,"Currency (for monetary values)",null,{"$f":"IF(E9=\"\",\"\",VLOOKUP(E9,Lists!A2:C40,3,FALSE))","v":""}]
[null,null,{"$f":"CONCATENATE(\"The due date for reporting is \",Lists!K10)","v":"The due date for reporting is 18 July 2022 and 19 September 2022"}]
[null,null,{"$f":"\"Who is the primary contact point for the data collection '\" &  Lists!K7&\"' in your country?\"","v":"Who is the primary contact point for the data collection 'European Forest Accounts' in your country?"}]
[]
[null,null,"Name:"]
[]
[null,null,"Institution:"]
[]
[null,null,"Unit:"]
[]
[null,null,"Telephone:"]
[]
[null,null,"Email adress:"]
[null,null,"Eurostat would be grateful if you could send us the completed questionnaire ahead of the deadline. "]

{"sheet":"Footnotes list","index":4,"n_rows":58,"n_cols":5,"rows_kept":58,"cut":false,"hidden":false,"merged":[[1,3,1,4],[3,3,3,4],[4,3,4,4],[6,3,6,4],[7,3,7,4]]}
[]
[]
[null,null,null,null,{"$f":"UPPER(Lists!K3)","v":"STATISTICAL OFFICE OF THE EUROPEAN UNION"}]
[null,null,null,{"$f":"UPPER(Lists!K7)","v":"EUROPEAN FOREST ACCOUNTS"}]
[null,null,null,{"$f":"CONCATENATE(Lists!K8,\" DATA COLLECTION\")","v":"2022 DATA COLLECTION"}]
[]
[null,null,null,"EXPLANATORY FOOTNOTES"]
[null,null,null,{"$f":"IF('GETTING STARTED'!E9=\"\",\"\",'GETTING STARTED'!E9)","v":""}]
[null,null,null,1,"Type your text here."]
[null,null,null,2]
[null,null,null,3]
[null,null,null,4]
[null,null,null,5]
[null,null,null,6]
[null,null,null,7]
[null,null,null,8]
[null,null,null,9]
[null,null,null,10]
[null,null,null,11]
[null,null,null,12]
[null,null,null,13]
[null,null,null,14]
[null,null,null,15]
[null,null,null,16]
[null,null,null,17]
[null,null,null,18]
[null,null,null,19]
[null,null,null,20]
[null,null,null,21]
[null,null,null,22]
[null,null,null,23]
[null,null,null,24]
[null,null,null,25]
[null,null,null,26]
[null,null,null,27]
[null,null,null,28]
[null,null,null,29]
[null,null,null,30]
[null,null,null,31]
[null,null,null,32]
[null,null,null,33]
[null,null,null,34]
[null,null,null,35]
[null,null,null,36]
[null,null,null,37]
[null,null,null,38]
[null,null,null,39]
[null,null,null,40]
[null,null,null,41]
[null,null,null,42]
[null,null,null,43]
[null,null,null,44]
[null,null,null,45]
[null,null,null,46]
[null,null,null,47]
[null,null,null,48]
[null,null,null,49]
[null,null,null,50]

{"sheet":"Metadata sheet","index":5,"n_rows":26,"n_cols":6,"rows_kept":26,"cut":false,"hidden":false,"merged":[[1,2,1,5],[2,2,2,5],[3,2,3,5],[4,2,4,5],[6,2,6,5]]}
[]
[]
[null,null,{"$f":"UPPER(Lists!K3)","v":"STATISTICAL OFFICE OF THE EUROPEAN UNION"}]
[null,null,{"$f":"UPPER(Lists!K7)","v":"EUROPEAN FOREST ACCOUNTS"}]
[null,null,{"$f":"CONCATENATE(Lists!K8,\" DATA COLLECTION\")","v":"2022 DATA COLLECTION"}]
[]
[null,null,"METADATA"]
[]
[null,null,"Metadata concept name","Concept description","Requested detail","Country response"]
[null,null,"Sector coverage","Main economic or other sectors covered by the statistics.","(1) For EFA Table B1: By definition, the scope of data in EFA Table B1 is limited to forestry and the logging industry (NACE A02). Please confirm your reporting for EFA Table B1 complies with this guidance i.e. (i) it includes all NACE A02 activities on the economic territory of the country and (ii) it excludes forestry and logging as secondary activity of other industries (i.e. classified in other NACEs.) (2) For EFA Table A2a/b: What is the sector coverage for 'Removals' reported in this table? Are 'Removals' limited to NACEA02 or do you include timber removals by other industries and or households? ","Type your text in respective rows. Please fill in all requested information."]
[null,null,"Statistical concepts and definitions","Statistical characteristics of statistical observations.","(1) How do you determine FAWS and FNAWS for EFA reporting - do you have national definitions of FAWS and FNAWS you use for EFA reporting? If so, please insert them here; else, please explain. (2) How do you define the scope of item '1.1.1.2. output of Forest trees' (EFA Table B1)? Please specify whether a) it is the total value of net annual increment of trees (and if so, whether it refers to trees growing in/on FAWS, FNAWS, OWL or other land); b) it only includes the difference between the value of net annual increment of trees and the value of trees removed by logging; c) it only includes the value of trees removed by logging (and if so, whether it refers to trees removed from FAWS, FNAWS, OWL or other land); d) other."]
[null,null,"Reference area","The country or geographic area to which the measured statistical phenomenon relates.","Do your data in all EFA tables use the entire country territory as a reference area? If not, please provide details (e.g. \"overseas territories are excluded from the scope of Tables A on area and timber\"; or \"Tables A2 on timber stocks and flows only cover data for corporations (public and private)\"; \"NAI and removals in forests owned by small private owners (households) are excluded\", etc.)"]
[null,null,"Institutional mandate","Set of rules or other formal set of instructions assigning responsibility as well as the authority to an organisation for the collection, processing, and dissemination of statistics.","Is there a legal base (i.e. a law/other legal instrument) for collecting data for forest accounts at national level?"]
[null,null,"Quality assessment","Overall assessment of data quality, based on standard quality criteria.","How do you check the quality of reported EFA data? (e.g. do you have an internal validation process, if so please briefly describe the steps, including information on the reference datasets you use for plausibility checks, if applicable.)"]
[null,null,"Accuracy and reliability","Accuracy: closeness of computations or estimates to the exact or true values that the statistics were intended to measure.\nReliability: closeness of the initial estimated value to the subsequent estimated value.","Do you assess the accuracy of your data? If so, please provide some details about the assessment."]
[null,null,"Comparability - over time","The extent to which statistics are comparable or reconcilable over time.","Is the time series of your EFA data reported to Eurostat consistent and comparable (i.e. do you use the same definitions, scope of reporting and measuring and compilation methods for the entire time series of reported data)?"]
[null,null,"Coherence - cross domain","The extent to which statistics are reconcilable with those obtained through other data sources or statistical domains.","Are your EFA data coherent with other official national statistics? (incl. main differences in concepts and definitions, statistical unit or object, classification used, correction methods, etc.) If not, please describe briefly the main sources/reasons for incoherence."]
[null,null,"Coherence - internal","The extent to which statistics are consistent within a given data set.","(1) Is the scope of your data reported for EFA Table Aa (on forest area) consistent with the scope of data reported for EFA Table A2 (on volume of timber)? E.g. Is the stock of timber reported for 'Forest' (Table A2) aligned with the area of 'Forest' (Table A1). (2) Is the scope of data reported for 'Removals' (Table A2) consistent with the scope of data reported for 'Opening and closing stocks' of timber (Table A2). I.e. (i) 'Removals' use the same measurement threshold as 'Stocks' (e.g. >0 cm DBH or other threshold but consistent between the two). (ii) 'Removals' are correctly reported in the line for the type of wooded land they were removed from (e.g. 'Removals' reported under line 'FAWS' are indeed removals from FAWS and exclude removals from OWL and OWLWTC.) Please list here any internal inconsistencies in the scope or definitions with the EFA dataset."]
[null,null,"Cost and Burden","Cost associated with the collection and production of a statistical product and burden on respondents.","What are resource needs for the compilation of EFA data in terms of personmonths? How can Eurostat support your data compilation or reporting?"]
[null,null,"Data revisions","Data revisions","Does the current data submission include any revisions of data submitted in earlier years? If so, please briefly describe the magnitude of revisions and the main reasons for revisions, by EFA Table, if applicable."]
[null,null,"Source data","Characteristics and components of the raw statistical data used for compiling statistical aggregates.","Please provide this information by EFA Table, if sources differ."]
[null,null,"Frequency of data collection","Frequency with which the source data are collected.","Please provide this information by EFA Table, if frequencies differ."]
[null,null,"Data collection","Systematic process of gathering data for official statistics.","Please provide this information by EFA Table, if data collection methods differ."]
[null,null,"Data compilation","Operations performed on data to derive new information according to a given set of rules.","Do you estimate / interpolate values to report for EFA from other national statistics? If so, please list for which variables and briefly describe what methods are used. (You may provide hyperlinks to methods instead of descriptions if these are publicly avaiable.) "]
[null,null,"Adjustment","The set of procedures employed to modify statistical data to enable it to conform to national or international standards or to address data quality differences when compiling specific data sets.","Does your reporting comply with EFA definitions of forest and OWL (in case you report data for EFA Tables A)? Do you make any adjustments of national data to comply with the EFA definition of forest? (Note: the EFA definition of forest is identical to the one of FAO FRA)"]
[null,null,"Comment","Supplementary descriptive text which can be attached to data or metadata.","Would you like to share any comment or observation?"]

{"sheet":"EFA A 1a","index":6,"n_rows":30,"n_cols":31,"rows_kept":30,"cut":false,"hidden":false,"merged":[[27,4,27,18],[30,4,30,18],[16,1,16,2],[8,5,8,6],[9,5,9,6],[10,5,10,6],[11,5,11,6],[12,5,12,6],[19,5,19,15],[6,7,7,7],[6,11,7,11],[6,15,7,15],[24,4,24,18],[6,16,7,16],[6,4,6,6],[7,5,7,6],[18,5,18,15],[13,5,13,6],[6,9,7,10],[6,8,7,8],[6,12,7,12],[6,13,7,14],[6,28,7,28],[6,29,7,30],[6,17,7,18],[6,20,7,20],[6,21,7,22],[6,24,7,24],[6,25,7,26],[6,27,7,27],[6,19,7,19],[6,23,7,23]]}
[]
[null,null,null,null,"Table A 1 - Wooded land"]
[null,null,null,null,"(a) Area of wooded land, in 1000 ha"]
[null,null,"GEO =>",null,"Country:",{"$f":"'GETTING STARTED'!G9","v":""},{"$f":"IF('GETTING STARTED'!E9=\"\",\"\",'GETTING STARTED'!E9)","v":""}]
[null,null,"TIME=>",null,"Year:",{"$f":"IF('GETTING STARTED'!E10=\"\",\"\",'GETTING STARTED'!E10)","v":""}]
[]
[null,null,null,null,"Assets (stocks and flows)",null,null,"Opening area (December t-1)","Standard footnotes","Explanatory\nfootnote",null,"Afforestation and other increase","Standard footnotes","Explanatory\nfootnote",null,"Deforestation  and other decrease","Standard footnotes","Explanatory\nfootnote",null,"Statistical re-classification  (+/-)","Standard footnotes","Explanatory\nfootnote",null,"Balancing item (2)\n(+/-)","Standard footnotes","Explanatory\nfootnote",null,"Closing area (December t)","Standard footnotes","Explanatory\nfootnote"]
[null,null,"INDIC_FO",null,"Code","Description"]
[null,null,"FOR",null,"       1","Forest",null,null,null,null,{"$f":"IF(TRIM(J9)=\"\", \"\", IF(VLOOKUP(J9,'Footnotes list'!$D$9:$E$107,2,FALSE)=0,\"\",VLOOKUP(J9,'Footnotes list'!$D$9:$E$107,2,FALSE) ) )","v":""},null,null,null,{"$f":"IF(TRIM(N9)=\"\", \"\", IF(VLOOKUP(N9,'Footnotes list'!$D$9:$E$107,2,FALSE)=0,\"\",VLOOKUP(N9,'Footnotes list'!$D$9:$E$107,2,FALSE) ) )","v":""},null,null,null,{"$f":"IF(TRIM(R9)=\"\", \"\", IF(VLOOKUP(R9,'Footnotes list'!$D$9:$E$107,2,FALSE)=0,\"\",VLOOKUP(R9,'Footnotes list'!$D$9:$E$107,2,FALSE) ) )","v":""},null,null,null,{"$f":"IF(TRIM(V9)=\"\", \"\", IF(VLOOKUP(V9,'Footnotes list'!$D$9:$E$107,2,FALSE)=0,\"\",VLOOKUP(V9,'Footnotes list'!$D$9:$E$107,2,FALSE) ) )","v":""},null,null,null,{"$f":"IF(TRIM(Z9)=\"\", \"\", IF(VLOOKUP(Z9,'Footnotes list'!$D$9:$E$107,2,FALSE)=0,\"\",VLOOKUP(Z9,'Footnotes list'!$D$9:$E$107,2,FALSE) ) )","v":""},{"$f":"IF(COUNT(H9,L9,P9,T9,X9)=0,\"\",SUM(H9,L9,-P9,T9,X9))","v":""},null,null,{"$f":"IF(TRIM(AD9)=\"\", \"\", IF(VLOOKUP(AD9,'Footnotes list'!$D$9:$E$107,2,FALSE)=0,\"\",VLOOKUP(AD9,'Footnotes list'!$D$9:$E$107,2,FALSE) ) )","v":""}]
[null,null,"FAWS",null,"       1.1","     Forest available for wood supply",null,null,null,null,{"$f":"IF(TRIM(J10)=\"\", \"\", IF(VLOOKUP(J10,'Footnotes list'!$D$9:$E$107,2,FALSE)=0,\"\",VLOOKUP(J10,'Footnotes list'!$D$9:$E$107,2,FALSE) ) )","v":""},null,null,null,{"$f":"IF(TRIM(N10)=\"\", \"\", IF(VLOOKUP(N10,'Footnotes list'!$D$9:$E$107,2,FALSE)=0,\"\",VLOOKUP(N10,'Footnotes list'!$D$9:$E$107,2,FALSE) ) )","v":""},null,null,null,{"$f":"IF(TRIM(R10)=\"\", \"\", IF(VLOOKUP(R10,'Footnotes list'!$D$9:$E$107,2,FALSE)=0,\"\",VLOOKUP(R10,'Footnotes list'!$D$9:$E$107,2,FALSE) ) )","v":""},null,null,null,{"$f":"IF(TRIM(V10)=\"\", \"\", IF(VLOOKUP(V10,'Footnotes list'!$D$9:$E$107,2,FALSE)=0,\"\",VLOOKUP(V10,'Footnotes list'!$D$9:$E$107,2,FALSE) ) )","v":""},null,null,null,{"$f":"IF(TRIM(Z10)=\"\", \"\", IF(VLOOKUP(Z10,'Footnotes list'!$D$9:$E$107,2,FALSE)=0,\"\",VLOOKUP(Z10,'Footnotes list'!$D$9:$E$107,2,FALSE) ) )","v":""},"",null,null,{"$f":"IF(TRIM(AD10)=\"\", \"\", IF(VLOOKUP(AD10,'Footnotes list'!$D$9:$E$107,2,FALSE)=0,\"\",VLOOKUP(AD10,'Footnotes list'!$D$9:$E$107,2,FALSE) ) )","v":""}]
[null,null,"FNAWS",null,"       1.2","     Forest not available for wood supply",null,null,null,null,{"$f":"IF(TRIM(J11)=\"\", \"\", IF(VLOOKUP(J11,'Footnotes list'!$D$9:$E$107,2,FALSE)=0,\"\",VLOOKUP(J11,'Footnotes list'!$D$9:$E$107,2,FALSE) ) )","v":""},null,null,null,{"$f":"IF(TRIM(N11)=\"\", \"\", IF(VLOOKUP(N11,'Footnotes list'!$D$9:$E$107,2,FALSE)=0,\"\",VLOOKUP(N11,'Footnotes list'!$D$9:$E$107,2,FALSE) ) )","v":""},null,null,null,{"$f":"IF(TRIM(R11)=\"\", \"\", IF(VLOOKUP(R11,'Footnotes list'!$D$9:$E$107,2,FALSE)=0,\"\",VLOOKUP(R11,'Footnotes list'!$D$9:$E$107,2,FALSE) ) )","v":""},null,null,null,{"$f":"IF(TRIM(V11)=\"\", \"\", IF(VLOOKUP(V11,'Footnotes list'!$D$9:$E$107,2,FALSE)=0,\"\",VLOOKUP(V11,'Footnotes list'!$D$9:$E$107,2,FALSE) ) )","v":""},null,null,null,{"$f":"IF(TRIM(Z11)=\"\", \"\", IF(VLOOKUP(Z11,'Footnotes list'!$D$9:$E$107,2,FALSE)=0,\"\",VLOOKUP(Z11,'Footnotes list'!$D$9:$E$107,2,FALSE) ) )","v":""},"",null,null,{"$f":"IF(TRIM(AD11)=\"\", \"\", IF(VLOOKUP(AD11,'Footnotes list'!$D$9:$E$107,2,FALSE)=0,\"\",VLOOKUP(AD11,'Footnotes list'!$D$9:$E$107,2,FALSE) ) )","v":""}]
[null,null,"OWL",null,"       2","Other wooded land",null,null,null,null,{"$f":"IF(TRIM(J12)=\"\", \"\", IF(VLOOKUP(J12,'Footnotes list'!$D$9:$E$107,2,FALSE)=0,\"\",VLOOKUP(J12,'Footnotes list'!$D$9:$E$107,2,FALSE) ) )","v":""},null,null,null,{"$f":"IF(TRIM(N12)=\"\", \"\", IF(VLOOKUP(N12,'Footnotes list'!$D$9:$E$107,2,FALSE)=0,\"\",VLOOKUP(N12,'Footnotes list'!$D$9:$E$107,2,FALSE) ) )","v":""},null,null,null,{"$f":"IF(TRIM(R12)=\"\", \"\", IF(VLOOKUP(R12,'Footnotes list'!$D$9:$E$107,2,FALSE)=0,\"\",VLOOKUP(R12,'Footnotes list'!$D$9:$E$107,2,FALSE) ) )","v":""},null,null,null,{"$f":"IF(TRIM(V12)=\"\", \"\", IF(VLOOKUP(V12,'Footnotes list'!$D$9:$E$107,2,FALSE)=0,\"\",VLOOKUP(V12,'Footnotes list'!$D$9:$E$107,2,FALSE) ) )","v":""},null,null,null,{"$f":"IF(TRIM(Z12)=\"\", \"\", IF(VLOOKUP(Z12,'Footnotes list'!$D$9:$E$107,2,FALSE)=0,\"\",VLOOKUP(Z12,'Footnotes list'!$D$9:$E$107,2,FALSE) ) )","v":""},"",null,null,{"$f":"IF(TRIM(AD12)=\"\", \"\", IF(VLOOKUP(AD12,'Footnotes list'!$D$9:$E$107,2,FALSE)=0,\"\",VLOOKUP(AD12,'Footnotes list'!$D$9:$E$107,2,FALSE) ) )","v":""}]
[null,null,"OWL_AWS",null,"       2.1","     Of which available for wood supply",null,null,null,null,{"$f":"IF(TRIM(J13)=\"\", \"\", IF(VLOOKUP(J13,'Footnotes list'!$D$9:$E$107,2,FALSE)=0,\"\",VLOOKUP(J13,'Footnotes list'!$D$9:$E$107,2,FALSE) ) )","v":""},null,null,null,{"$f":"IF(TRIM(N13)=\"\", \"\", IF(VLOOKUP(N13,'Footnotes list'!$D$9:$E$107,2,FALSE)=0,\"\",VLOOKUP(N13,'Footnotes list'!$D$9:$E$107,2,FALSE) ) )","v":""},null,null,null,{"$f":"IF(TRIM(R13)=\"\", \"\", IF(VLOOKUP(R13,'Footnotes list'!$D$9:$E$107,2,FALSE)=0,\"\",VLOOKUP(R13,'Footnotes list'!$D$9:$E$107,2,FALSE) ) )","v":""},null,null,null,{"$f":"IF(TRIM(V13)=\"\", \"\", IF(VLOOKUP(V13,'Footnotes list'!$D$9:$E$107,2,FALSE)=0,\"\",VLOOKUP(V13,'Footnotes list'!$D$9:$E$107,2,FALSE) ) )","v":""},null,null,null,{"$f":"IF(TRIM(Z13)=\"\", \"\", IF(VLOOKUP(Z13,'Footnotes list'!$D$9:$E$107,2,FALSE)=0,\"\",VLOOKUP(Z13,'Footnotes list'!$D$9:$E$107,2,FALSE) ) )","v":""},"",null,null,{"$f":"IF(TRIM(AD13)=\"\", \"\", IF(VLOOKUP(AD13,'Footnotes list'!$D$9:$E$107,2,FALSE)=0,\"\",VLOOKUP(AD13,'Footnotes list'!$D$9:$E$107,2,FALSE) ) )","v":""}]
[null,null,"OLWTC_AWS",null,"      3","Other land with tree cover available for wood supply (1)",null,null,null,null,{"$f":"IF(TRIM(J14)=\"\", \"\", IF(VLOOKUP(J14,'Footnotes list'!$D$9:$E$107,2,FALSE)=0,\"\",VLOOKUP(J14,'Footnotes list'!$D$9:$E$107,2,FALSE) ) )","v":""},null,null,null,{"$f":"IF(TRIM(N14)=\"\", \"\", IF(VLOOKUP(N14,'Footnotes list'!$D$9:$E$107,2,FALSE)=0,\"\",VLOOKUP(N14,'Footnotes list'!$D$9:$E$107,2,FALSE) ) )","v":""},null,null,null,{"$f":"IF(TRIM(R14)=\"\", \"\", IF(VLOOKUP(R14,'Footnotes list'!$D$9:$E$107,2,FALSE)=0,\"\",VLOOKUP(R14,'Footnotes list'!$D$9:$E$107,2,FALSE) ) )","v":""},null,null,null,{"$f":"IF(TRIM(V14)=\"\", \"\", IF(VLOOKUP(V14,'Footnotes list'!$D$9:$E$107,2,FALSE)=0,\"\",VLOOKUP(V14,'Footnotes list'!$D$9:$E$107,2,FALSE) ) )","v":""},null,null,null,{"$f":"IF(TRIM(Z14)=\"\", \"\", IF(VLOOKUP(Z14,'Footnotes list'!$D$9:$E$107,2,FALSE)=0,\"\",VLOOKUP(Z14,'Footnotes list'!$D$9:$E$107,2,FALSE) ) )","v":""},"",null,null,{"$f":"IF(TRIM(AD14)=\"\", \"\", IF(VLOOKUP(AD14,'Footnotes list'!$D$9:$E$107,2,FALSE)=0,\"\",VLOOKUP(AD14,'Footnotes list'!$D$9:$E$107,2,FALSE) ) )","v":""}]
[]
[]
[null,"Constants",null,null,"STK_FLOW",null,null,"STK_OP",null,null,null,"INCR",null,null,null,"DECR",null,null,null,"RCLAS",null,null,null,"BAL",null,null,null,"STK_CL"]
[null,"UNIT","THS_HA",null,"FOOTNOTES:"]
[null,"FOR_ACC","NAP",null,"(1)","Includes agro-forestry, short-rotation forestry and short-rotation coppices on agricultural land. "]
[null,"INDUSE","TOTAL",null,"(2)","Used to balance out discrepancies between opening and closing stocks after taking account of the flows explicitly defined in this EFA table (increases, decreases and net changes as a result of re-classification) and observed based on the source data."]
[null,"PROD_WD","NAP"]
[null,"TREESPEC","TOTAL",null,"NOTES:"]
[null,"SOURCE_TABLE","A_1A",null,"- Values in grey cells are priority information to be reported"]
[null,null,null,null,"- Values in white cells are lower priority information"]
[null,null,null,null,"- \"Deforestation and other decrease\" are to be recorded in the questionnaire as positive values (or zeros). The questionnaire includes formulas that will deduct these items from opening stocks to calculate correct closing stocks. In case you report negative values the cell will be highlighted with light red and the data should be modified."]
[]
[null,null,null,null,"Data sources:"]
[]
[]
[null,null,null,null,"Comments on the compilation of the table:"]

{"sheet":"EFA A 1b","index":7,"n_rows":30,"n_cols":35,"rows_kept":30,"cut":false,"hidden":false,"merged":[[16,1,16,2],[6,4,6,6],[7,5,7,6],[8,5,8,6],[6,7,7,7],[9,5,9,6],[10,5,10,6],[11,5,11,6],[12,5,12,6],[13,5,13,6],[18,5,18,15],[19,5,19,15],[24,4,24,18],[30,4,30,18],[6,29,7,30],[6,28,7,28],[6,20,7,20],[6,21,7,22],[6,24,7,24],[6,25,7,26],[6,32,7,32],[6,33,7,34],[6,8,7,8],[6,9,7,10],[6,12,7,12],[6,13,7,14],[6,16,7,16],[6,11,7,11],[6,15,7,15],[6,23,7,23],[6,27,7,27],[6,31,7,31],[6,19,7,19],[6,17,7,18]]}
[]
[null,null,null,null,"Table A 1 - Wooded land"]
[null,null,null,null,"(b) Area of wooded land, in million national currency"]
[null,null,"GEO =>",null,"Country:",{"$f":"'GETTING STARTED'!G9","v":""},{"$f":"IF('GETTING STARTED'!E9=\"\",\"\",'GETTING STARTED'!E9)","v":""}]
[null,null,"TIME=>",null,"Year:",{"$f":"IF('GETTING STARTED'!E10=\"\",\"\",'GETTING STARTED'!E10)","v":""},{"$f":"CONCATENATE(\"Currency: \", 'GETTING STARTED'!$E$11)","v":"Currency: "}]
[]
[null,null,null,null,"Assets (stocks and flows)",null,null,"Opening area (December t-1)","Standard footnotes","Explanatory\nfootnote",null,"Afforestation and other increase","Standard footnotes","Explanatory\nfootnote",null,"Deforestation  and other decrease","Standard footnotes","Explanatory\nfootnote",null,"Revaluation (+/-)","Standard footnotes","Explanatory\nfootnote",null,"Statistical re-classification  (+/-)","Standard footnotes","Explanatory\nfootnote",null,"Balancing item (2)\n(+/-)","Standard footnotes","Explanatory\nfootnote",null,"Closing area (December t)","Standard footnotes","Explanatory\nfootnote"]
[null,null,"INDIC_FO",null,"Code","Description"]
[null,null,"FOR",null,"       1","Forest",null,null,null,null,{"$f":"IF(TRIM(J9)=\"\", \"\", IF(VLOOKUP(J9,'Footnotes list'!$D$9:$E$107,2,FALSE)=0,\"\",VLOOKUP(J9,'Footnotes list'!$D$9:$E$107,2,FALSE) ) )","v":""},null,null,null,{"$f":"IF(TRIM(N9)=\"\", \"\", IF(VLOOKUP(N9,'Footnotes list'!$D$9:$E$107,2,FALSE)=0,\"\",VLOOKUP(N9,'Footnotes list'!$D$9:$E$107,2,FALSE) ) )","v":""},null,null,null,{"$f":"IF(TRIM(R9)=\"\", \"\", IF(VLOOKUP(R9,'Footnotes list'!$D$9:$E$107,2,FALSE)=0,\"\",VLOOKUP(R9,'Footnotes list'!$D$9:$E$107,2,FALSE) ) )","v":""},null,null,null,{"$f":"IF(TRIM(V9)=\"\", \"\", IF(VLOOKUP(V9,'Footnotes list'!$D$9:$E$107,2,FALSE)=0,\"\",VLOOKUP(V9,'Footnotes list'!$D$9:$E$107,2,FALSE) ) )","v":""},null,null,null,{"$f":"IF(TRIM(Z9)=\"\", \"\", IF(VLOOKUP(Z9,'Footnotes list'!$D$9:$E$107,2,FALSE)=0,\"\",VLOOKUP(Z9,'Footnotes list'!$D$9:$E$107,2,FALSE) ) )","v":""},null,null,null,{"$f":"IF(TRIM(AD9)=\"\", \"\", IF(VLOOKUP(AD9,'Footnotes list'!$D$9:$E$107,2,FALSE)=0,\"\",VLOOKUP(AD9,'Footnotes list'!$D$9:$E$107,2,FALSE) ) )","v":""},{"$f":"IF(COUNT(H9,L9,P9,T9,X9,AB9)=0,\"\",SUM(H9,L9,-P9,T9,X9,AB9))","v":""},null,null,{"$f":"IF(TRIM(AH9)=\"\", \"\", IF(VLOOKUP(AH9,'Footnotes list'!$D$9:$E$107,2,FALSE)=0,\"\",VLOOKUP(AH9,'Footnotes list'!$D$9:$E$107,2,FALSE) ) )","v":""}]
[null,null,"FAWS",null,"       1.1","     Forest available for wood supply",null,null,null,null,{"$f":"IF(TRIM(J10)=\"\", \"\", IF(VLOOKUP(J10,'Footnotes list'!$D$9:$E$107,2,FALSE)=0,\"\",VLOOKUP(J10,'Footnotes list'!$D$9:$E$107,2,FALSE) ) )","v":""},null,null,null,{"$f":"IF(TRIM(N10)=\"\", \"\", IF(VLOOKUP(N10,'Footnotes list'!$D$9:$E$107,2,FALSE)=0,\"\",VLOOKUP(N10,'Footnotes list'!$D$9:$E$107,2,FALSE) ) )","v":""},null,null,null,{"$f":"IF(TRIM(R10)=\"\", \"\", IF(VLOOKUP(R10,'Footnotes list'!$D$9:$E$107,2,FALSE)=0,\"\",VLOOKUP(R10,'Footnotes list'!$D$9:$E$107,2,FALSE) ) )","v":""},null,null,null,{"$f":"IF(TRIM(V10)=\"\", \"\", IF(VLOOKUP(V10,'Footnotes list'!$D$9:$E$107,2,FALSE)=0,\"\",VLOOKUP(V10,'Footnotes list'!$D$9:$E$107,2,FALSE) ) )","v":""},null,null,null,{"$f":"IF(TRIM(Z10)=\"\", \"\", IF(VLOOKUP(Z10,'Footnotes list'!$D$9:$E$107,2,FALSE)=0,\"\",VLOOKUP(Z10,'Footnotes list'!$D$9:$E$107,2,FALSE) ) )","v":""},null,null,null,{"$f":"IF(TRIM(AD10)=\"\", \"\", IF(VLOOKUP(AD10,'Footnotes list'!$D$9:$E$107,2,FALSE)=0,\"\",VLOOKUP(AD10,'Footnotes list'!$D$9:$E$107,2,FALSE) ) )","v":""},"",null,null,{"$f":"IF(TRIM(AH10)=\"\", \"\", IF(VLOOKUP(AH10,'Footnotes list'!$D$9:$E$107,2,FALSE)=0,\"\",VLOOKUP(AH10,'Footnotes list'!$D$9:$E$107,2,FALSE) ) )","v":""}]
[null,null,"FNAWS",null,"       1.2","     Forest not available for wood supply",null,null,null,null,{"$f":"IF(TRIM(J11)=\"\", \"\", IF(VLOOKUP(J11,'Footnotes list'!$D$9:$E$107,2,FALSE)=0,\"\",VLOOKUP(J11,'Footnotes list'!$D$9:$E$107,2,FALSE) ) )","v":""},null,null,null,{"$f":"IF(TRIM(N11)=\"\", \"\", IF(VLOOKUP(N11,'Footnotes list'!$D$9:$E$107,2,FALSE)=0,\"\",VLOOKUP(N11,'Footnotes list'!$D$9:$E$107,2,FALSE) ) )","v":""},null,null,null,{"$f":"IF(TRIM(R11)=\"\", \"\", IF(VLOOKUP(R11,'Footnotes list'!$D$9:$E$107,2,FALSE)=0,\"\",VLOOKUP(R11,'Footnotes list'!$D$9:$E$107,2,FALSE) ) )","v":""},null,null,null,{"$f":"IF(TRIM(V11)=\"\", \"\", IF(VLOOKUP(V11,'Footnotes list'!$D$9:$E$107,2,FALSE)=0,\"\",VLOOKUP(V11,'Footnotes list'!$D$9:$E$107,2,FALSE) ) )","v":""},null,null,null,{"$f":"IF(TRIM(Z11)=\"\", \"\", IF(VLOOKUP(Z11,'Footnotes list'!$D$9:$E$107,2,FALSE)=0,\"\",VLOOKUP(Z11,'Footnotes list'!$D$9:$E$107,2,FALSE) ) )","v":""},null,null,null,{"$f":"IF(TRIM(AD11)=\"\", \"\", IF(VLOOKUP(AD11,'Footnotes list'!$D$9:$E$107,2,FALSE)=0,\"\",VLOOKUP(AD11,'Footnotes list'!$D$9:$E$107,2,FALSE) ) )","v":""},"",null,null,{"$f":"IF(TRIM(AH11)=\"\", \"\", IF(VLOOKUP(AH11,'Footnotes list'!$D$9:$E$107,2,FALSE)=0,\"\",VLOOKUP(AH11,'Footnotes list'!$D$9:$E$107,2,FALSE) ) )","v":""}]
[null,null,"OWL",null,"       2","Other wooded land",null,null,null,null,{"$f":"IF(TRIM(J12)=\"\", \"\", IF(VLOOKUP(J12,'Footnotes list'!$D$9:$E$107,2,FALSE)=0,\"\",VLOOKUP(J12,'Footnotes list'!$D$9:$E$107,2,FALSE) ) )","v":""},null,null,null,{"$f":"IF(TRIM(N12)=\"\", \"\", IF(VLOOKUP(N12,'Footnotes list'!$D$9:$E$107,2,FALSE)=0,\"\",VLOOKUP(N12,'Footnotes list'!$D$9:$E$107,2,FALSE) ) )","v":""},null,null,null,{"$f":"IF(TRIM(R12)=\"\", \"\", IF(VLOOKUP(R12,'Footnotes list'!$D$9:$E$107,2,FALSE)=0,\"\",VLOOKUP(R12,'Footnotes list'!$D$9:$E$107,2,FALSE) ) )","v":""},null,null,null,{"$f":"IF(TRIM(V12)=\"\", \"\", IF(VLOOKUP(V12,'Footnotes list'!$D$9:$E$107,2,FALSE)=0,\"\",VLOOKUP(V12,'Footnotes list'!$D$9:$E$107,2,FALSE) ) )","v":""},null,null,null,{"$f":"IF(TRIM(Z12)=\"\", \"\", IF(VLOOKUP(Z12,'Footnotes list'!$D$9:$E$107,2,FALSE)=0,\"\",VLOOKUP(Z12,'Footnotes list'!$D$9:$E$107,2,FALSE) ) )","v":""},null,null,null,{"$f":"IF(TRIM(AD12)=\"\", \"\", IF(VLOOKUP(AD12,'Footnotes list'!$D$9:$E$107,2,FALSE)=0,\"\",VLOOKUP(AD12,'Footnotes list'!$D$9:$E$107,2,FALSE) ) )","v":""},"",null,null,{"$f":"IF(TRIM(AH12)=\"\", \"\", IF(VLOOKUP(AH12,'Footnotes list'!$D$9:$E$107,2,FALSE)=0,\"\",VLOOKUP(AH12,'Footnotes list'!$D$9:$E$107,2,FALSE) ) )","v":""}]
[null,null,"OWL_AWS",null,"       2.1","     Of which available for wood supply",null,null,null,null,{"$f":"IF(TRIM(J13)=\"\", \"\", IF(VLOOKUP(J13,'Footnotes list'!$D$9:$E$107,2,FALSE)=0,\"\",VLOOKUP(J13,'Footnotes list'!$D$9:$E$107,2,FALSE) ) )","v":""},null,null,null,{"$f":"IF(TRIM(N13)=\"\", \"\", IF(VLOOKUP(N13,'Footnotes list'!$D$9:$E$107,2,FALSE)=0,\"\",VLOOKUP(N13,'Footnotes list'!$D$9:$E$107,2,FALSE) ) )","v":""},null,null,null,{"$f":"IF(TRIM(R13)=\"\", \"\", IF(VLOOKUP(R13,'Footnotes list'!$D$9:$E$107,2,FALSE)=0,\"\",VLOOKUP(R13,'Footnotes list'!$D$9:$E$107,2,FALSE) ) )","v":""},null,null,null,{"$f":"IF(TRIM(V13)=\"\", \"\", IF(VLOOKUP(V13,'Footnotes list'!$D$9:$E$107,2,FALSE)=0,\"\",VLOOKUP(V13,'Footnotes list'!$D$9:$E$107,2,FALSE) ) )","v":""},null,null,null,{"$f":"IF(TRIM(Z13)=\"\", \"\", IF(VLOOKUP(Z13,'Footnotes list'!$D$9:$E$107,2,FALSE)=0,\"\",VLOOKUP(Z13,'Footnotes list'!$D$9:$E$107,2,FALSE) ) )","v":""},null,null,null,{"$f":"IF(TRIM(AD13)=\"\", \"\", IF(VLOOKUP(AD13,'Footnotes list'!$D$9:$E$107,2,FALSE)=0,\"\",VLOOKUP(AD13,'Footnotes list'!$D$9:$E$107,2,FALSE) ) )","v":""},"",null,null,{"$f":"IF(TRIM(AH13)=\"\", \"\", IF(VLOOKUP(AH13,'Footnotes list'!$D$9:$E$107,2,FALSE)=0,\"\",VLOOKUP(AH13,'Footnotes list'!$D$9:$E$107,2,FALSE) ) )","v":""}]
[null,null,"OLWTC_AWS",null,"      3","Other land with tree cover available for wood supply (1)",null,null,null,null,{"$f":"IF(TRIM(J14)=\"\", \"\", IF(VLOOKUP(J14,'Footnotes list'!$D$9:$E$107,2,FALSE)=0,\"\",VLOOKUP(J14,'Footnotes list'!$D$9:$E$107,2,FALSE) ) )","v":""},null,null,null,{"$f":"IF(TRIM(N14)=\"\", \"\", IF(VLOOKUP(N14,'Footnotes list'!$D$9:$E$107,2,FALSE)=0,\"\",VLOOKUP(N14,'Footnotes list'!$D$9:$E$107,2,FALSE) ) )","v":""},null,null,null,{"$f":"IF(TRIM(R14)=\"\", \"\", IF(VLOOKUP(R14,'Footnotes list'!$D$9:$E$107,2,FALSE)=0,\"\",VLOOKUP(R14,'Footnotes list'!$D$9:$E$107,2,FALSE) ) )","v":""},null,null,null,{"$f":"IF(TRIM(V14)=\"\", \"\", IF(VLOOKUP(V14,'Footnotes list'!$D$9:$E$107,2,FALSE)=0,\"\",VLOOKUP(V14,'Footnotes list'!$D$9:$E$107,2,FALSE) ) )","v":""},null,null,null,{"$f":"IF(TRIM(Z14)=\"\", \"\", IF(VLOOKUP(Z14,'Footnotes list'!$D$9:$E$107,2,FALSE)=0,\"\",VLOOKUP(Z14,'Footnotes list'!$D$9:$E$107,2,FALSE) ) )","v":""},null,null,null,{"$f":"IF(TRIM(AD14)=\"\", \"\", IF(VLOOKUP(AD14,'Footnotes list'!$D$9:$E$107,2,FALSE)=0,\"\",VLOOKUP(AD14,'Footnotes list'!$D$9:$E$107,2,FALSE) ) )","v":""},"",null,null,{"$f":"IF(TRIM(AH14)=\"\", \"\", IF(VLOOKUP(AH14,'Footnotes list'!$D$9:$E$107,2,FALSE)=0,\"\",VLOOKUP(AH14,'Footnotes list'!$D$9:$E$107,2,FALSE) ) )","v":""}]
[]
[]
[null,"Constants",null,null,"STK_FLOW",null,null,"STK_OP",null,null,null,"INCR",null,null,null,"DECR",null,null,null,"REVAL",null,null,null,"RCLAS",null,null,null,"BAL",null,null,null,"STK_CL"]
[null,"UNIT","MIO_NAC",null,"FOOTNOTES:"]
[null,"FOR_ACC","NAP",null,"(1)","Includes agro-forestry, short-rotation forestry and short-rotation coppices on agricultural land. "]
[null,"INDUSE","TOTAL",null,"(2)","Used to balance out discrepancies between opening and closing stocks after taking account of the flows explicitly defined in this EFA table (increases, decreases and net changes as a result of revaluation and re-classification) and observed based on the source data."]
[null,"PROD_WD","NAP"]
[null,"TREESPEC","TOTAL",null,"NOTES:"]
[null,"SOURCE_TABLE","A_1B",null,"- Values in grey cells are priority information to be reported"]
[null,null,null,null,"- Values in white cells are lower priority information"]
[null,null,null,null,"- \"Deforestation and other decrease\" are to be recorded in the questionnaire as positive values (or zeros). The questionnaire includes formulas that will deduct these items from opening stocks to calculate correct closing stocks. In case you report negative values the cell will be highlighted with light red and the data should be modified."]
[]
[null,null,null,null,"Data sources:"]
[]
[]
[null,null,null,null,"Comments on the compilation of the table:"]

{"sheet":"EFA A 2a","index":8,"n_rows":40,"n_cols":35,"rows_kept":40,"cut":false,"hidden":false,"merged":[[18,5,18,15],[19,5,19,15],[37,4,37,18],[40,4,40,18],[16,1,16,2],[6,20,7,20],[6,21,7,22],[6,24,7,24],[7,5,7,6],[6,11,7,11],[6,15,7,15],[6,19,7,19],[6,23,7,23],[6,8,7,8],[9,5,9,6],[6,4,6,6],[11,5,11,6],[6,7,7,7],[6,17,7,18],[12,5,12,6],[13,5,13,6],[10,5,10,6],[34,4,34,18],[6,33,7,34],[6,25,7,26],[6,27,7,27],[6,31,7,31],[6,28,7,28],[6,29,7,30],[6,32,7,32],[6,9,7,10],[6,12,7,12],[6,13,7,14],[6,16,7,16],[8,5,8,6]]}
[]
[null,null,null,null,"Table A 2 - Timber"]
[null,null,null,null,"(a) Timber on wooded land, in 1000 m3 over bark"]
[null,null,"GEO =>",null,"Country:",{"$f":"'GETTING STARTED'!G9","v":""},{"$f":"IF('GETTING STARTED'!E9=\"\",\"\",'GETTING STARTED'!E9)","v":""}]
[null,null,"TIME=>",null,"Year:",{"$f":"IF('GETTING STARTED'!E10=\"\",\"\",'GETTING STARTED'!E10)","v":""}]
[]
[null,null,null,null,"Assets (stocks and flows)",null,null,"Opening stocks (3) (December t-1)","Standard footnotes","Explanatory\nfootnote",null,"Net increment (4) ","Standard footnotes","Explanatory\nfootnote",null,"Removals (5)","Standard footnotes","Explanatory\nfootnote",null,"Irretrievable losses (6)  ","Standard footnotes","Explanatory\nfootnote",null,"Statistical re-classification\n (+/-)","Standard footnotes","Explanatory\nfootnote",null,"Balancing item (2)\n(+/-)","Standard footnotes","Explanatory\nfootnote",null,"Closing stocks (3) (December t)","Standard footnotes","Explanatory\nfootnote"]
[null,null,"INDIC_FO",null,"Code","Description"]
[null,null,"FOR",null,"       1","Forest",null,null,null,null,{"$f":"IF(TRIM(J9)=\"\", \"\", IF(VLOOKUP(J9,'Footnotes list'!$D$9:$E$107,2,FALSE)=0,\"\",VLOOKUP(J9,'Footnotes list'!$D$9:$E$107,2,FALSE) ) )","v":""},null,null,null,{"$f":"IF(TRIM(N9)=\"\", \"\", IF(VLOOKUP(N9,'Footnotes list'!$D$9:$E$107,2,FALSE)=0,\"\",VLOOKUP(N9,'Footnotes list'!$D$9:$E$107,2,FALSE) ) )","v":""},null,null,null,{"$f":"IF(TRIM(R9)=\"\", \"\", IF(VLOOKUP(R9,'Footnotes list'!$D$9:$E$107,2,FALSE)=0,\"\",VLOOKUP(R9,'Footnotes list'!$D$9:$E$107,2,FALSE) ) )","v":""},null,null,null,{"$f":"IF(TRIM(V9)=\"\", \"\", IF(VLOOKUP(V9,'Footnotes list'!$D$9:$E$107,2,FALSE)=0,\"\",VLOOKUP(V9,'Footnotes list'!$D$9:$E$107,2,FALSE) ) )","v":""},null,null,null,{"$f":"IF(TRIM(Z9)=\"\", \"\", IF(VLOOKUP(Z9,'Footnotes list'!$D$9:$E$107,2,FALSE)=0,\"\",VLOOKUP(Z9,'Footnotes list'!$D$9:$E$107,2,FALSE) ) )","v":""},null,null,null,{"$f":"IF(TRIM(AD9)=\"\", \"\", IF(VLOOKUP(AD9,'Footnotes list'!$D$9:$E$107,2,FALSE)=0,\"\",VLOOKUP(AD9,'Footnotes list'!$D$9:$E$107,2,FALSE) ) )","v":""},{"$f":"IF(COUNT(H9,L9,P9,T9,X9,AB9)=0,\"\",SUM(H9,L9,-P9,-T9,X9,AB9))","v":""},null,null,{"$f":"IF(TRIM(AH9)=\"\", \"\", IF(VLOOKUP(AH9,'Footnotes list'!$D$9:$E$107,2,FALSE)=0,\"\",VLOOKUP(AH9,'Footnotes list'!$D$9:$E$107,2,FALSE) ) )","v":""}]
[null,null,"FAWS",null,"       1.1","     Forest available for wood supply",null,null,null,null,{"$f":"IF(TRIM(J10)=\"\", \"\", IF(VLOOKUP(J10,'Footnotes list'!$D$9:$E$107,2,FALSE)=0,\"\",VLOOKUP(J10,'Footnotes list'!$D$9:$E$107,2,FALSE) ) )","v":""},null,null,null,{"$f":"IF(TRIM(N10)=\"\", \"\", IF(VLOOKUP(N10,'Footnotes list'!$D$9:$E$107,2,FALSE)=0,\"\",VLOOKUP(N10,'Footnotes list'!$D$9:$E$107,2,FALSE) ) )","v":""},null,null,null,{"$f":"IF(TRIM(R10)=\"\", \"\", IF(VLOOKUP(R10,'Footnotes list'!$D$9:$E$107,2,FALSE)=0,\"\",VLOOKUP(R10,'Footnotes list'!$D$9:$E$107,2,FALSE) ) )","v":""},null,null,null,{"$f":"IF(TRIM(V10)=\"\", \"\", IF(VLOOKUP(V10,'Footnotes list'!$D$9:$E$107,2,FALSE)=0,\"\",VLOOKUP(V10,'Footnotes list'!$D$9:$E$107,2,FALSE) ) )","v":""},null,null,null,{"$f":"IF(TRIM(Z10)=\"\", \"\", IF(VLOOKUP(Z10,'Footnotes list'!$D$9:$E$107,2,FALSE)=0,\"\",VLOOKUP(Z10,'Footnotes list'!$D$9:$E$107,2,FALSE) ) )","v":""},null,null,null,{"$f":"IF(TRIM(AD10)=\"\", \"\", IF(VLOOKUP(AD10,'Footnotes list'!$D$9:$E$107,2,FALSE)=0,\"\",VLOOKUP(AD10,'Footnotes list'!$D$9:$E$107,2,FALSE) ) )","v":""},"",null,null,{"$f":"IF(TRIM(AH10)=\"\", \"\", IF(VLOOKUP(AH10,'Footnotes list'!$D$9:$E$107,2,FALSE)=0,\"\",VLOOKUP(AH10,'Footnotes list'!$D$9:$E$107,2,FALSE) ) )","v":""}]
[null,null,"FNAWS",null,"       1.2","     Forest not available for wood supply",null,null,null,null,{"$f":"IF(TRIM(J11)=\"\", \"\", IF(VLOOKUP(J11,'Footnotes list'!$D$9:$E$107,2,FALSE)=0,\"\",VLOOKUP(J11,'Footnotes list'!$D$9:$E$107,2,FALSE) ) )","v":""},null,null,null,{"$f":"IF(TRIM(N11)=\"\", \"\", IF(VLOOKUP(N11,'Footnotes list'!$D$9:$E$107,2,FALSE)=0,\"\",VLOOKUP(N11,'Footnotes list'!$D$9:$E$107,2,FALSE) ) )","v":""},null,null,null,{"$f":"IF(TRIM(R11)=\"\", \"\", IF(VLOOKUP(R11,'Footnotes list'!$D$9:$E$107,2,FALSE)=0,\"\",VLOOKUP(R11,'Footnotes list'!$D$9:$E$107,2,FALSE) ) )","v":""},null,null,null,{"$f":"IF(TRIM(V11)=\"\", \"\", IF(VLOOKUP(V11,'Footnotes list'!$D$9:$E$107,2,FALSE)=0,\"\",VLOOKUP(V11,'Footnotes list'!$D$9:$E$107,2,FALSE) ) )","v":""},null,null,null,{"$f":"IF(TRIM(Z11)=\"\", \"\", IF(VLOOKUP(Z11,'Footnotes list'!$D$9:$E$107,2,FALSE)=0,\"\",VLOOKUP(Z11,'Footnotes list'!$D$9:$E$107,2,FALSE) ) )","v":""},null,null,null,{"$f":"IF(TRIM(AD11)=\"\", \"\", IF(VLOOKUP(AD11,'Footnotes list'!$D$9:$E$107,2,FALSE)=0,\"\",VLOOKUP(AD11,'Footnotes list'!$D$9:$E$107,2,FALSE) ) )","v":""},"",null,null,{"$f":"IF(TRIM(AH11)=\"\", \"\", IF(VLOOKUP(AH11,'Footnotes list'!$D$9:$E$107,2,FALSE)=0,\"\",VLOOKUP(AH11,'Footnotes list'!$D$9:$E$107,2,FALSE) ) )","v":""}]
[null,null,"OWL",null,"       2","Other wooded land",null,null,null,null,{"$f":"IF(TRIM(J12)=\"\", \"\", IF(VLOOKUP(J12,'Footnotes list'!$D$9:$E$107,2,FALSE)=0,\"\",VLOOKUP(J12,'Footnotes list'!$D$9:$E$107,2,FALSE) ) )","v":""},null,null,null,{"$f":"IF(TRIM(N12)=\"\", \"\", IF(VLOOKUP(N12,'Footnotes list'!$D$9:$E$107,2,FALSE)=0,\"\",VLOOKUP(N12,'Footnotes list'!$D$9:$E$107,2,FALSE) ) )","v":""},null,null,null,{"$f":"IF(TRIM(R12)=\"\", \"\", IF(VLOOKUP(R12,'Footnotes list'!$D$9:$E$107,2,FALSE)=0,\"\",VLOOKUP(R12,'Footnotes list'!$D$9:$E$107,2,FALSE) ) )","v":""},null,null,null,{"$f":"IF(TRIM(V12)=\"\", \"\", IF(VLOOKUP(V12,'Footnotes list'!$D$9:$E$107,2,FALSE)=0,\"\",VLOOKUP(V12,'Footnotes list'!$D$9:$E$107,2,FALSE) ) )","v":""},null,null,null,{"$f":"IF(TRIM(Z12)=\"\", \"\", IF(VLOOKUP(Z12,'Footnotes list'!$D$9:$E$107,2,FALSE)=0,\"\",VLOOKUP(Z12,'Footnotes list'!$D$9:$E$107,2,FALSE) ) )","v":""},null,null,null,{"$f":"IF(TRIM(AD12)=\"\", \"\", IF(VLOOKUP(AD12,'Footnotes list'!$D$9:$E$107,2,FALSE)=0,\"\",VLOOKUP(AD12,'Footnotes list'!$D$9:$E$107,2,FALSE) ) )","v":""},"",null,null,{"$f":"IF(TRIM(AH12)=\"\", \"\", IF(VLOOKUP(AH12,'Footnotes list'!$D$9:$E$107,2,FALSE)=0,\"\",VLOOKUP(AH12,'Footnotes list'!$D$9:$E$107,2,FALSE) ) )","v":""}]
[null,null,"OWL_AWS",null,"       2.1","     Of which available for wood supply",null,null,null,null,{"$f":"IF(TRIM(J13)=\"\", \"\", IF(VLOOKUP(J13,'Footnotes list'!$D$9:$E$107,2,FALSE)=0,\"\",VLOOKUP(J13,'Footnotes list'!$D$9:$E$107,2,FALSE) ) )","v":""},null,null,null,{"$f":"IF(TRIM(N13)=\"\", \"\", IF(VLOOKUP(N13,'Footnotes list'!$D$9:$E$107,2,FALSE)=0,\"\",VLOOKUP(N13,'Footnotes list'!$D$9:$E$107,2,FALSE) ) )","v":""},null,null,null,{"$f":"IF(TRIM(R13)=\"\", \"\", IF(VLOOKUP(R13,'Footnotes list'!$D$9:$E$107,2,FALSE)=0,\"\",VLOOKUP(R13,'Footnotes list'!$D$9:$E$107,2,FALSE) ) )","v":""},null,null,null,{"$f":"IF(TRIM(V13)=\"\", \"\", IF(VLOOKUP(V13,'Footnotes list'!$D$9:$E$107,2,FALSE)=0,\"\",VLOOKUP(V13,'Footnotes list'!$D$9:$E$107,2,FALSE) ) )","v":""},null,null,null,{"$f":"IF(TRIM(Z13)=\"\", \"\", IF(VLOOKUP(Z13,'Footnotes list'!$D$9:$E$107,2,FALSE)=0,\"\",VLOOKUP(Z13,'Footnotes list'!$D$9:$E$107,2,FALSE) ) )","v":""},null,null,null,{"$f":"IF(TRIM(AD13)=\"\", \"\", IF(VLOOKUP(AD13,'Footnotes list'!$D$9:$E$107,2,FALSE)=0,\"\",VLOOKUP(AD13,'Footnotes list'!$D$9:$E$107,2,FALSE) ) )","v":""},"",null,null,{"$f":"IF(TRIM(AH13)=\"\", \"\", IF(VLOOKUP(AH13,'Footnotes list'!$D$9:$E$107,2,FALSE)=0,\"\",VLOOKUP(AH13,'Footnotes list'!$D$9:$E$107,2,FALSE) ) )","v":""}]
[null,null,"OLWTC_AWS",null,"      3","Other land with tree cover available for wood supply (1)",null,null,null,null,{"$f":"IF(TRIM(J14)=\"\", \"\", IF(VLOOKUP(J14,'Footnotes list'!$D$9:$E$107,2,FALSE)=0,\"\",VLOOKUP(J14,'Footnotes list'!$D$9:$E$107,2,FALSE) ) )","v":""},null,null,null,{"$f":"IF(TRIM(N14)=\"\", \"\", IF(VLOOKUP(N14,'Footnotes list'!$D$9:$E$107,2,FALSE)=0,\"\",VLOOKUP(N14,'Footnotes list'!$D$9:$E$107,2,FALSE) ) )","v":""},null,null,null,{"$f":"IF(TRIM(R14)=\"\", \"\", IF(VLOOKUP(R14,'Footnotes list'!$D$9:$E$107,2,FALSE)=0,\"\",VLOOKUP(R14,'Footnotes list'!$D$9:$E$107,2,FALSE) ) )","v":""},null,null,null,{"$f":"IF(TRIM(V14)=\"\", \"\", IF(VLOOKUP(V14,'Footnotes list'!$D$9:$E$107,2,FALSE)=0,\"\",VLOOKUP(V14,'Footnotes list'!$D$9:$E$107,2,FALSE) ) )","v":""},null,null,null,{"$f":"IF(TRIM(Z14)=\"\", \"\", IF(VLOOKUP(Z14,'Footnotes list'!$D$9:$E$107,2,FALSE)=0,\"\",VLOOKUP(Z14,'Footnotes list'!$D$9:$E$107,2,FALSE) ) )","v":""},null,null,null,{"$f":"IF(TRIM(AD14)=\"\", \"\", IF(VLOOKUP(AD14,'Footnotes list'!$D$9:$E$107,2,FALSE)=0,\"\",VLOOKUP(AD14,'Footnotes list'!$D$9:$E$107,2,FALSE) ) )","v":""},"",null,null,{"$f":"IF(TRIM(AH14)=\"\", \"\", IF(VLOOKUP(AH14,'Footnotes list'!$D$9:$E$107,2,FALSE)=0,\"\",VLOOKUP(AH14,'Footnotes list'!$D$9:$E$107,2,FALSE) ) )","v":""}]
[]
[]
[null,"Constants",null,null,"STK_FLOW",null,null,"STK_OP",null,null,null,"NAI",null,null,null,"RMOV",null,null,null,"LOSS",null,null,null,"RCLAS",null,null,null,"BAL",null,null,null,"STK_CL"]
[null,"UNIT","THS_M3",null,"FOOTNOTES:"]
[null,"FOR_ACC","NAP",null,"(1)","Includes agro-forestry, short-rotation forestry and short-rotation coppices on agricultural land. "]
[null,"INDUSE","TOTAL",null,"(2)","Used to balance out discrepancies between opening and closing stocks after taking account of the flows explicitly defined in this EFA table (increases, decreases and irretrievable losses, and net changes as a result of re-classification) and observed based on the source data."]
[null,"PROD_WD","NAP",null,"(3)","The stock of timber includes the growing stock plus "]
[null,"TREESPEC","TOTAL",null,null,"- trees felled and still in the forest"]
[null,"SOURCE_TABLE","A_2A",null,null,"- any major loss of live trees due to storms (windthrow) that will probably be used (retrievable); please report such major losses here:"]
[null,null,null,null,null," 1000 m3 over bark in the opening stock"]
[null,null,null,null,null," 1000 m3 over bark in the closing stock"]
[null,null,null,null,null,"In both cases, either the wood will be removed in the future, or it will be an irretrievable loss in a later year, when the timber becomes unusable."]
[null,null,null,null,"(4)","This is the average annual volume growth of live trees, calculated from the stock of live trees (growing stock) available at the start of the year minus the average annual mortality. "]
[null,null,null,null,"      ","The data for the calculation usually come from the national forest inventory. "]
[null,null,null,null,"(5)","The removals are reported in the annual Joint Forest Sector Questionnaire (JFSQ); please convert the underbark JFSQ data to overbark data for EFA reporting."]
[null,null,null,null,"(6)","Includes felling residues, all fellings from windthrow that cannot be removed from the forest, as well as timber lost through forest fires. "]
[]
[null,null,null,null,"NOTES:"]
[null,null,null,null,"- Values in grey cells are priority information to be reported"]
[null,null,null,null,"- Values in white cells are lower priority information"]
[null,null,null,null,"- \"Removals\" and \"Irretrievable losses\" are to be recorded in the questionnaire as positive values (or zeros). The questionnaire includes formulas that will deduct these items from opening stocks to calculate correct closing stocks. In case you report negative values the cell will be highlighted with light red and the data should be modified."]
[]
[null,null,null,null,"Data sources:"]
[]
[]
[null,null,null,null,"Comments on the compilation of the table:"]

{"sheet":"EFA A 2b","index":9,"n_rows":32,"n_cols":39,"rows_kept":32,"cut":false,"hidden":false,"merged":[[16,1,16,2],[20,5,20,15],[6,4,6,6],[6,7,7,7],[6,11,7,11],[7,5,7,6],[6,15,7,15],[6,8,7,8],[6,9,7,10],[18,5,18,15],[19,5,19,15],[25,4,25,18],[29,4,29,18],[32,4,32,18],[6,33,7,34],[6,36,7,36],[9,5,9,6],[10,5,10,6],[11,5,11,6],[12,5,12,6],[6,19,7,19],[6,27,7,27],[6,31,7,31],[6,35,7,35],[6,23,7,23],[13,5,13,6],[6,37,7,38],[8,5,8,6],[6,21,7,22],[6,24,7,24],[6,25,7,26],[6,28,7,28],[6,29,7,30],[6,12,7,12],[6,13,7,14],[6,16,7,16],[6,17,7,18],[6,20,7,20],[6,32,7,32]]}
[]
[null,null,null,null,"Table A 2 - Timber"]
[null,null,null,null,"(b) Timber on wooded land, in million national currency  "]
[null,null,"GEO =>",null,"Country:",{"$f":"'GETTING STARTED'!G9","v":""},{"$f":"IF('GETTING STARTED'!E9=\"\",\"\",'GETTING STARTED'!E9)","v":""}]
[null,null,"TIME=>",null,"Year:",{"$f":"IF('GETTING STARTED'!E10=\"\",\"\",'GETTING STARTED'!E10)","v":""},{"$f":"CONCATENATE(\"Currency: \", 'GETTING STARTED'!$E$11)","v":"Currency: "}]
[]
[null,null,null,null,"Assets (stocks and flows)",null,null,"Opening stocks\n(December t-1)","Standard footnotes","Explanatory\nfootnote",null,"Net increment","Standard footnotes","Explanatory\nfootnote",null,"Removals (3)","Standard footnotes","Explanatory\nfootnote",null,"Irretrievable losses","Standard footnotes","Explanatory\nfootnote",null,"Revaluation (+/-)","Standard footnotes","Explanatory\nfootnote",null,"Statistical re-classification\n (+/-)","Standard footnotes","Explanatory\nfootnote",null,"Balancing item (2)\n(+/-)","Standard footnotes","Explanatory\nfootnote",null,"Closing stocks (December t)","Standard footnotes","Explanatory\nfootnote"]
[null,null,"INDIC_FO",null,"Code","Description"]
[null,null,"FOR",null,"       1","Forest",null,null,null,null,{"$f":"IF(TRIM(J9)=\"\", \"\", IF(VLOOKUP(J9,'Footnotes list'!$D$9:$E$107,2,FALSE)=0,\"\",VLOOKUP(J9,'Footnotes list'!$D$9:$E$107,2,FALSE) ) )","v":""},null,null,null,{"$f":"IF(TRIM(N9)=\"\", \"\", IF(VLOOKUP(N9,'Footnotes list'!$D$9:$E$107,2,FALSE)=0,\"\",VLOOKUP(N9,'Footnotes list'!$D$9:$E$107,2,FALSE) ) )","v":""},null,null,null,{"$f":"IF(TRIM(R9)=\"\", \"\", IF(VLOOKUP(R9,'Footnotes list'!$D$9:$E$107,2,FALSE)=0,\"\",VLOOKUP(R9,'Footnotes list'!$D$9:$E$107,2,FALSE) ) )","v":""},null,null,null,{"$f":"IF(TRIM(V9)=\"\", \"\", IF(VLOOKUP(V9,'Footnotes list'!$D$9:$E$107,2,FALSE)=0,\"\",VLOOKUP(V9,'Footnotes list'!$D$9:$E$107,2,FALSE) ) )","v":""},null,null,null,{"$f":"IF(TRIM(Z9)=\"\", \"\", IF(VLOOKUP(Z9,'Footnotes list'!$D$9:$E$107,2,FALSE)=0,\"\",VLOOKUP(Z9,'Footnotes list'!$D$9:$E$107,2,FALSE) ) )","v":""},null,null,null,{"$f":"IF(TRIM(AD9)=\"\", \"\", IF(VLOOKUP(AD9,'Footnotes list'!$D$9:$E$107,2,FALSE)=0,\"\",VLOOKUP(AD9,'Footnotes list'!$D$9:$E$107,2,FALSE) ) )","v":""},null,null,null,{"$f":"IF(TRIM(AH9)=\"\", \"\", IF(VLOOKUP(AH9,'Footnotes list'!$D$9:$E$107,2,FALSE)=0,\"\",VLOOKUP(AH9,'Footnotes list'!$D$9:$E$107,2,FALSE) ) )","v":""},{"$f":"IF(COUNT(H9,L9,P9,T9,X9,AB9,AF9)=0,\"\",SUM(H9,L9,-P9,-T9,X9,AB9,AF9))","v":""},null,null,{"$f":"IF(TRIM(AL9)=\"\", \"\", IF(VLOOKUP(AL9,'Footnotes list'!$D$9:$E$107,2,FALSE)=0,\"\",VLOOKUP(AL9,'Footnotes list'!$D$9:$E$107,2,FALSE) ) )","v":""}]
[null,null,"FAWS",null,"       1.1","     Forest available for wood supply",null,null,null,null,{"$f":"IF(TRIM(J10)=\"\", \"\", IF(VLOOKUP(J10,'Footnotes list'!$D$9:$E$107,2,FALSE)=0,\"\",VLOOKUP(J10,'Footnotes list'!$D$9:$E$107,2,FALSE) ) )","v":""},null,null,null,{"$f":"IF(TRIM(N10)=\"\", \"\", IF(VLOOKUP(N10,'Footnotes list'!$D$9:$E$107,2,FALSE)=0,\"\",VLOOKUP(N10,'Footnotes list'!$D$9:$E$107,2,FALSE) ) )","v":""},null,null,null,{"$f":"IF(TRIM(R10)=\"\", \"\", IF(VLOOKUP(R10,'Footnotes list'!$D$9:$E$107,2,FALSE)=0,\"\",VLOOKUP(R10,'Footnotes list'!$D$9:$E$107,2,FALSE) ) )","v":""},null,null,null,{"$f":"IF(TRIM(V10)=\"\", \"\", IF(VLOOKUP(V10,'Footnotes list'!$D$9:$E$107,2,FALSE)=0,\"\",VLOOKUP(V10,'Footnotes list'!$D$9:$E$107,2,FALSE) ) )","v":""},null,null,null,{"$f":"IF(TRIM(Z10)=\"\", \"\", IF(VLOOKUP(Z10,'Footnotes list'!$D$9:$E$107,2,FALSE)=0,\"\",VLOOKUP(Z10,'Footnotes list'!$D$9:$E$107,2,FALSE) ) )","v":""},null,null,null,{"$f":"IF(TRIM(AD10)=\"\", \"\", IF(VLOOKUP(AD10,'Footnotes list'!$D$9:$E$107,2,FALSE)=0,\"\",VLOOKUP(AD10,'Footnotes list'!$D$9:$E$107,2,FALSE) ) )","v":""},null,null,null,{"$f":"IF(TRIM(AH10)=\"\", \"\", IF(VLOOKUP(AH10,'Footnotes list'!$D$9:$E$107,2,FALSE)=0,\"\",VLOOKUP(AH10,'Footnotes list'!$D$9:$E$107,2,FALSE) ) )","v":""},"",null,null,{"$f":"IF(TRIM(AL10)=\"\", \"\", IF(VLOOKUP(AL10,'Footnotes list'!$D$9:$E$107,2,FALSE)=0,\"\",VLOOKUP(AL10,'Footnotes list'!$D$9:$E$107,2,FALSE) ) )","v":""}]
[null,null,"FNAWS",null,"       1.2","     Forest not available for wood supply",null,null,null,null,{"$f":"IF(TRIM(J11)=\"\", \"\", IF(VLOOKUP(J11,'Footnotes list'!$D$9:$E$107,2,FALSE)=0,\"\",VLOOKUP(J11,'Footnotes list'!$D$9:$E$107,2,FALSE) ) )","v":""},null,null,null,{"$f":"IF(TRIM(N11)=\"\", \"\", IF(VLOOKUP(N11,'Footnotes list'!$D$9:$E$107,2,FALSE)=0,\"\",VLOOKUP(N11,'Footnotes list'!$D$9:$E$107,2,FALSE) ) )","v":""},null,null,null,{"$f":"IF(TRIM(R11)=\"\", \"\", IF(VLOOKUP(R11,'Footnotes list'!$D$9:$E$107,2,FALSE)=0,\"\",VLOOKUP(R11,'Footnotes list'!$D$9:$E$107,2,FALSE) ) )","v":""},null,null,null,{"$f":"IF(TRIM(V11)=\"\", \"\", IF(VLOOKUP(V11,'Footnotes list'!$D$9:$E$107,2,FALSE)=0,\"\",VLOOKUP(V11,'Footnotes list'!$D$9:$E$107,2,FALSE) ) )","v":""},null,null,null,{"$f":"IF(TRIM(Z11)=\"\", \"\", IF(VLOOKUP(Z11,'Footnotes list'!$D$9:$E$107,2,FALSE)=0,\"\",VLOOKUP(Z11,'Footnotes list'!$D$9:$E$107,2,FALSE) ) )","v":""},null,null,null,{"$f":"IF(TRIM(AD11)=\"\", \"\", IF(VLOOKUP(AD11,'Footnotes list'!$D$9:$E$107,2,FALSE)=0,\"\",VLOOKUP(AD11,'Footnotes list'!$D$9:$E$107,2,FALSE) ) )","v":""},null,null,null,{"$f":"IF(TRIM(AH11)=\"\", \"\", IF(VLOOKUP(AH11,'Footnotes list'!$D$9:$E$107,2,FALSE)=0,\"\",VLOOKUP(AH11,'Footnotes list'!$D$9:$E$107,2,FALSE) ) )","v":""},"",null,null,{"$f":"IF(TRIM(AL11)=\"\", \"\", IF(VLOOKUP(AL11,'Footnotes list'!$D$9:$E$107,2,FALSE)=0,\"\",VLOOKUP(AL11,'Footnotes list'!$D$9:$E$107,2,FALSE) ) )","v":""}]
[null,null,"OWL",null,"       2","Other wooded land",null,null,null,null,{"$f":"IF(TRIM(J12)=\"\", \"\", IF(VLOOKUP(J12,'Footnotes list'!$D$9:$E$107,2,FALSE)=0,\"\",VLOOKUP(J12,'Footnotes list'!$D$9:$E$107,2,FALSE) ) )","v":""},null,null,null,{"$f":"IF(TRIM(N12)=\"\", \"\", IF(VLOOKUP(N12,'Footnotes list'!$D$9:$E$107,2,FALSE)=0,\"\",VLOOKUP(N12,'Footnotes list'!$D$9:$E$107,2,FALSE) ) )","v":""},null,null,null,{"$f":"IF(TRIM(R12)=\"\", \"\", IF(VLOOKUP(R12,'Footnotes list'!$D$9:$E$107,2,FALSE)=0,\"\",VLOOKUP(R12,'Footnotes list'!$D$9:$E$107,2,FALSE) ) )","v":""},null,null,null,{"$f":"IF(TRIM(V12)=\"\", \"\", IF(VLOOKUP(V12,'Footnotes list'!$D$9:$E$107,2,FALSE)=0,\"\",VLOOKUP(V12,'Footnotes list'!$D$9:$E$107,2,FALSE) ) )","v":""},null,null,null,{"$f":"IF(TRIM(Z12)=\"\", \"\", IF(VLOOKUP(Z12,'Footnotes list'!$D$9:$E$107,2,FALSE)=0,\"\",VLOOKUP(Z12,'Footnotes list'!$D$9:$E$107,2,FALSE) ) )","v":""},null,null,null,{"$f":"IF(TRIM(AD12)=\"\", \"\", IF(VLOOKUP(AD12,'Footnotes list'!$D$9:$E$107,2,FALSE)=0,\"\",VLOOKUP(AD12,'Footnotes list'!$D$9:$E$107,2,FALSE) ) )","v":""},null,null,null,{"$f":"IF(TRIM(AH12)=\"\", \"\", IF(VLOOKUP(AH12,'Footnotes list'!$D$9:$E$107,2,FALSE)=0,\"\",VLOOKUP(AH12,'Footnotes list'!$D$9:$E$107,2,FALSE) ) )","v":""},"",null,null,{"$f":"IF(TRIM(AL12)=\"\", \"\", IF(VLOOKUP(AL12,'Footnotes list'!$D$9:$E$107,2,FALSE)=0,\"\",VLOOKUP(AL12,'Footnotes list'!$D$9:$E$107,2,FALSE) ) )","v":""}]
[null,null,"OWL_AWS",null,"       2.1","     Of which available for wood supply",null,null,null,null,{"$f":"IF(TRIM(J13)=\"\", \"\", IF(VLOOKUP(J13,'Footnotes list'!$D$9:$E$107,2,FALSE)=0,\"\",VLOOKUP(J13,'Footnotes list'!$D$9:$E$107,2,FALSE) ) )","v":""},null,null,null,{"$f":"IF(TRIM(N13)=\"\", \"\", IF(VLOOKUP(N13,'Footnotes list'!$D$9:$E$107,2,FALSE)=0,\"\",VLOOKUP(N13,'Footnotes list'!$D$9:$E$107,2,FALSE) ) )","v":""},null,null,null,{"$f":"IF(TRIM(R13)=\"\", \"\", IF(VLOOKUP(R13,'Footnotes list'!$D$9:$E$107,2,FALSE)=0,\"\",VLOOKUP(R13,'Footnotes list'!$D$9:$E$107,2,FALSE) ) )","v":""},null,null,null,{"$f":"IF(TRIM(V13)=\"\", \"\", IF(VLOOKUP(V13,'Footnotes list'!$D$9:$E$107,2,FALSE)=0,\"\",VLOOKUP(V13,'Footnotes list'!$D$9:$E$107,2,FALSE) ) )","v":""},null,null,null,{"$f":"IF(TRIM(Z13)=\"\", \"\", IF(VLOOKUP(Z13,'Footnotes list'!$D$9:$E$107,2,FALSE)=0,\"\",VLOOKUP(Z13,'Footnotes list'!$D$9:$E$107,2,FALSE) ) )","v":""},null,null,null,{"$f":"IF(TRIM(AD13)=\"\", \"\", IF(VLOOKUP(AD13,'Footnotes list'!$D$9:$E$107,2,FALSE)=0,\"\",VLOOKUP(AD13,'Footnotes list'!$D$9:$E$107,2,FALSE) ) )","v":""},null,null,null,{"$f":"IF(TRIM(AH13)=\"\", \"\", IF(VLOOKUP(AH13,'Footnotes list'!$D$9:$E$107,2,FALSE)=0,\"\",VLOOKUP(AH13,'Footnotes list'!$D$9:$E$107,2,FALSE) ) )","v":""},"",null,null,{"$f":"IF(TRIM(AL13)=\"\", \"\", IF(VLOOKUP(AL13,'Footnotes list'!$D$9:$E$107,2,FALSE)=0,\"\",VLOOKUP(AL13,'Footnotes list'!$D$9:$E$107,2,FALSE) ) )","v":""}]
[null,null,"OLWTC_AWS",null,"      3","Other land with tree cover available for wood supply (1)",null,null,null,null,{"$f":"IF(TRIM(J14)=\"\", \"\", IF(VLOOKUP(J14,'Footnotes list'!$D$9:$E$107,2,FALSE)=0,\"\",VLOOKUP(J14,'Footnotes list'!$D$9:$E$107,2,FALSE) ) )","v":""},null,null,null,{"$f":"IF(TRIM(N14)=\"\", \"\", IF(VLOOKUP(N14,'Footnotes list'!$D$9:$E$107,2,FALSE)=0,\"\",VLOOKUP(N14,'Footnotes list'!$D$9:$E$107,2,FALSE) ) )","v":""},null,null,null,{"$f":"IF(TRIM(R14)=\"\", \"\", IF(VLOOKUP(R14,'Footnotes list'!$D$9:$E$107,2,FALSE)=0,\"\",VLOOKUP(R14,'Footnotes list'!$D$9:$E$107,2,FALSE) ) )","v":""},null,null,null,{"$f":"IF(TRIM(V14)=\"\", \"\", IF(VLOOKUP(V14,'Footnotes list'!$D$9:$E$107,2,FALSE)=0,\"\",VLOOKUP(V14,'Footnotes list'!$D$9:$E$107,2,FALSE) ) )","v":""},null,null,null,{"$f":"IF(TRIM(Z14)=\"\", \"\", IF(VLOOKUP(Z14,'Footnotes list'!$D$9:$E$107,2,FALSE)=0,\"\",VLOOKUP(Z14,'Footnotes list'!$D$9:$E$107,2,FALSE) ) )","v":""},null,null,null,{"$f":"IF(TRIM(AD14)=\"\", \"\", IF(VLOOKUP(AD14,'Footnotes list'!$D$9:$E$107,2,FALSE)=0,\"\",VLOOKUP(AD14,'Footnotes list'!$D$9:$E$107,2,FALSE) ) )","v":""},null,null,null,{"$f":"IF(TRIM(AH14)=\"\", \"\", IF(VLOOKUP(AH14,'Footnotes list'!$D$9:$E$107,2,FALSE)=0,\"\",VLOOKUP(AH14,'Footnotes list'!$D$9:$E$107,2,FALSE) ) )","v":""},"",null,null,{"$f":"IF(TRIM(AL14)=\"\", \"\", IF(VLOOKUP(AL14,'Footnotes list'!$D$9:$E$107,2,FALSE)=0,\"\",VLOOKUP(AL14,'Footnotes list'!$D$9:$E$107,2,FALSE) ) )","v":""}]
[]
[]
[null,"Constants",null,null,"STK_FLOW",null,null,"STK_OP",null,null,null,"NAI",null,null,null,"RMOV",null,null,null,"LOSS",null,null,null,"REVAL",null,null,null,"RCLAS",null,null,null,"BAL",null,null,null,"STK_CL"]
[null,"UNIT","MIO_NAC",null,"FOOTNOTES:"]
[null,"FOR_ACC","NAP",null,"(1)","Includes agro-forestry, short-rotation forestry and short-rotation coppices on agricultural land. "]
[null,"INDUSE","TOTAL",null,"(2)","Used to balance out discrepancies between opening and closing stocks after taking account of the flows explicitly defined in this EFA table (increases, decreases and irretrievable losses, and net changes as a result of revaluation and re-classification) and observed based on the source data."]
[null,"PROD_WD","NAP",null,"(3)","The average price available for removals is under bark. It cannot be directly applied to the physical quantity of removals over bark. A conversion factor to  under bark quantity or a different (lower) price is necessary for the calculation: Value = Price * Volume."]
[null,"TREESPEC","TOTAL"]
[null,"SOURCE_TABLE","A_2B",null,"NOTES:"]
[null,null,null,null,"- Values in grey cells are priority information to be reported"]
[null,null,null,null,"- Values in white cells are lower priority information"]
[null,null,null,null,"- \"Removals\" and \"Irretrievable losses\" are to be recorded in the questionnaire as positive values (or zeros). The questionnaire includes formulas that will deduct these items from opening stocks to calculate correct closing stocks. In case you report negative values the cell will be highlighted with light red and the data should be modified."]
[]
[]
[null,null,null,null,"Data sources:"]
[]
[]
[null,null,null,null,"Comments on the compilation of the table:"]

{"sheet":"EFA B 1","index":10,"n_rows":92,"n_cols":11,"rows_kept":92,"cut":false,"hidden":false,"merged":[[81,4,81,10],[74,5,74,10],[84,4,85,10],[88,4,89,10],[92,4,93,10],[69,5,69,10],[70,5,70,10],[71,5,71,10],[72,5,72,10],[73,5,73,10],[68,5,68,10],[0,1,0,2],[2,4,2,8],[7,5,7,6],[54,5,54,6],[6,4,6,7],[6,8,7,8],[5,4,5,10],[6,9,7,10],[54,9,54,10],[63,5,63,10],[64,5,64,10],[65,5,65,10],[66,5,66,10],[67,5,67,10]]}
[null,"Constants"]
[null,"INDIC_FO","NAP",null,"Table B 1 (Former table 3c) Economic aggregates of the forestry and logging industry"]
[null,"STK_FLOW","TOTAL",null,"in million national currency  [former Table 3c]\nForestry and logging industry only"]
[null,"INDUSE","A02","GEO =>","Country:",{"$f":"'GETTING STARTED'!G9","v":""},{"$f":"IF('GETTING STARTED'!E9=\"\",\"\",'GETTING STARTED'!E9)","v":""}]
[null,"PROD_WD","NAP","TIME=>","Year:",{"$f":"IF('GETTING STARTED'!E10=\"\",\"\",'GETTING STARTED'!E10)","v":""},{"$f":"CONCATENATE(\"Currency: \", 'GETTING STARTED'!$E$11)","v":"Currency: "}]
[null,"TREESPEC","TOTAL",null,"If the data do not allow you to report on the forestry and logging industry only, as separate from other industries, please explain this in the \"Comments on the compilation of the table\" below.  "]
[null,"SOURCE_TABLE","B_1",null,"Products and economic aggregates (current transactions)",null,null,null,"Standard footnotes","Explanatory\nfootnote"]
[null,"UNIT","FOR_ACC",null,"Code","Description",null,"Million NAC"]
[null,"MIO_NAC","P1",null,"1","Total output  (at basic prices) [P.1]",null,{"$f":"IF(COUNT(H11,H19,H20,H21)=0,\"\",SUM(H11,H19,H20,H21))","v":""},null,null,{"$f":"IF(TRIM(J9)=\"\", \"\", IF(VLOOKUP(J9,'Footnotes list'!$D$9:$E$107,2,FALSE)=0,\"\",VLOOKUP(J9,'Footnotes list'!$D$9:$E$107,2,FALSE) ) )","v":""}]
[null,"MIO_NAC","P12",null,"1.0","  Of which output for own final use [P.12]",null,null,null,null,{"$f":"IF(TRIM(J10)=\"\", \"\", IF(VLOOKUP(J10,'Footnotes list'!$D$9:$E$107,2,FALSE)=0,\"\",VLOOKUP(J10,'Footnotes list'!$D$9:$E$107,2,FALSE) ) )","v":""}]
[null,"MIO_NAC","P1_GD",null,"1.1","  Goods characteristic of the forestry and logging activity",null,{"$f":"IF(COUNT(H12,H15,H18)=0,\"\",SUM(H12,H15,H18))","v":""},null,null,{"$f":"IF(TRIM(J11)=\"\", \"\", IF(VLOOKUP(J11,'Footnotes list'!$D$9:$E$107,2,FALSE)=0,\"\",VLOOKUP(J11,'Footnotes list'!$D$9:$E$107,2,FALSE) ) )","v":""}]
[null,"MIO_NAC","P1_TR_PL",null,"1.1.1","    Trees, tree plants and forest tree seeds",null,{"$f":"IF(COUNT(H13,H14)=0,\"\",SUM(H13,H14))","v":""},null,null,{"$f":"IF(TRIM(J12)=\"\", \"\", IF(VLOOKUP(J12,'Footnotes list'!$D$9:$E$107,2,FALSE)=0,\"\",VLOOKUP(J12,'Footnotes list'!$D$9:$E$107,2,FALSE) ) )","v":""}]
[null,"MIO_NAC","P1_PL",null,"1.1.1.1","       Live forest tree plants (02.10.11) and tree seeds (02.10.12)",null,null,null,null,{"$f":"IF(TRIM(J13)=\"\", \"\", IF(VLOOKUP(J13,'Footnotes list'!$D$9:$E$107,2,FALSE)=0,\"\",VLOOKUP(J13,'Footnotes list'!$D$9:$E$107,2,FALSE) ) )","v":""}]
[null,"MIO_NAC","P1_TR",null,"1.1.1.2","       Forest trees (02.10.30) (1)",null,null,null,null,{"$f":"IF(TRIM(J14)=\"\", \"\", IF(VLOOKUP(J14,'Footnotes list'!$D$9:$E$107,2,FALSE)=0,\"\",VLOOKUP(J14,'Footnotes list'!$D$9:$E$107,2,FALSE) ) )","v":""}]
[null,"MIO_NAC","P1_RW",null,"1.1.2","    Wood in the rough (02.20.1)",null,{"$f":"IF(COUNT(H16,H17)=0,\"\",SUM(H16,H17))","v":""},null,null,{"$f":"IF(TRIM(J15)=\"\", \"\", IF(VLOOKUP(J15,'Footnotes list'!$D$9:$E$107,2,FALSE)=0,\"\",VLOOKUP(J15,'Footnotes list'!$D$9:$E$107,2,FALSE) ) )","v":""}]
[null,"MIO_NAC","P1_RWIN",null,"1.1.2.1","       Logs (2)",null,null,null,null,{"$f":"IF(TRIM(J16)=\"\", \"\", IF(VLOOKUP(J16,'Footnotes list'!$D$9:$E$107,2,FALSE)=0,\"\",VLOOKUP(J16,'Footnotes list'!$D$9:$E$107,2,FALSE) ) )","v":""}]
[null,"MIO_NAC","P1_RWFW",null,"1.1.2.2","       Fuel wood (02.20.14 and 02.20.15)",null,null,null,null,{"$f":"IF(TRIM(J17)=\"\", \"\", IF(VLOOKUP(J17,'Footnotes list'!$D$9:$E$107,2,FALSE)=0,\"\",VLOOKUP(J17,'Footnotes list'!$D$9:$E$107,2,FALSE) ) )","v":""}]
[null,"MIO_NAC","P1_NW",null,"1.1.4","    Non-wood products (02.30) (3)",null,null,null,null,{"$f":"IF(TRIM(J18)=\"\", \"\", IF(VLOOKUP(J18,'Footnotes list'!$D$9:$E$107,2,FALSE)=0,\"\",VLOOKUP(J18,'Footnotes list'!$D$9:$E$107,2,FALSE) ) )","v":""}]
[null,"MIO_NAC","P1_SERV",null,"1.2","  Services characteristic of the forestry and logging activity (4)",null,null,null,null,{"$f":"IF(TRIM(J19)=\"\", \"\", IF(VLOOKUP(J19,'Footnotes list'!$D$9:$E$107,2,FALSE)=0,\"\",VLOOKUP(J19,'Footnotes list'!$D$9:$E$107,2,FALSE) ) )","v":""}]
[null,"MIO_NAC","P1_SEC",null,"1.3","  Other products from connected secondary activities in the local KAU (5)",null,null,null,null,{"$f":"IF(TRIM(J20)=\"\", \"\", IF(VLOOKUP(J20,'Footnotes list'!$D$9:$E$107,2,FALSE)=0,\"\",VLOOKUP(J20,'Footnotes list'!$D$9:$E$107,2,FALSE) ) )","v":""}]
[null,"MIO_NAC","P1_O",null,"1.4","  Other products (*)",null,null,null,null,{"$f":"IF(TRIM(J21)=\"\", \"\", IF(VLOOKUP(J21,'Footnotes list'!$D$9:$E$107,2,FALSE)=0,\"\",VLOOKUP(J21,'Footnotes list'!$D$9:$E$107,2,FALSE) ) )","v":""}]
[null,"MIO_NAC","P2",null,"2","Total intermediate consumption [P.2]",null,{"$f":"IF(COUNT(H23,H28,H33)=0,\"\",SUM(H23,H28,H33))","v":""},null,null,{"$f":"IF(TRIM(J22)=\"\", \"\", IF(VLOOKUP(J22,'Footnotes list'!$D$9:$E$107,2,FALSE)=0,\"\",VLOOKUP(J22,'Footnotes list'!$D$9:$E$107,2,FALSE) ) )","v":""}]
[null,"MIO_NAC","P2_GD",null,"2.1","  Goods input",null,{"$f":"IF(COUNT(H24,H25,H26,H27)=0,\"\",SUM(H24,H25,H26,H27))","v":""},null,null,{"$f":"IF(TRIM(J23)=\"\", \"\", IF(VLOOKUP(J23,'Footnotes list'!$D$9:$E$107,2,FALSE)=0,\"\",VLOOKUP(J23,'Footnotes list'!$D$9:$E$107,2,FALSE) ) )","v":""}]
[null,"MIO_NAC","P2_TR_PL",null,"2.1.1","    Trees, tree plants and forest tree seeds (6)",null,null,null,null,{"$f":"IF(TRIM(J24)=\"\", \"\", IF(VLOOKUP(J24,'Footnotes list'!$D$9:$E$107,2,FALSE)=0,\"\",VLOOKUP(J24,'Footnotes list'!$D$9:$E$107,2,FALSE) ) )","v":""}]
[null,"MIO_NAC","P2_NRG",null,"2.1.2","    Energy, lubricants (7)",null,null,null,null,{"$f":"IF(TRIM(J25)=\"\", \"\", IF(VLOOKUP(J25,'Footnotes list'!$D$9:$E$107,2,FALSE)=0,\"\",VLOOKUP(J25,'Footnotes list'!$D$9:$E$107,2,FALSE) ) )","v":""}]
[null,"MIO_NAC","P2_FERT",null,"2.1.3","    Fertilisers and soil improvers",null,null,null,null,{"$f":"IF(TRIM(J26)=\"\", \"\", IF(VLOOKUP(J26,'Footnotes list'!$D$9:$E$107,2,FALSE)=0,\"\",VLOOKUP(J26,'Footnotes list'!$D$9:$E$107,2,FALSE) ) )","v":""}]
[null,"MIO_NAC","P2_PPP",null,"2.1.4","    Plant protection products and pesticides (8)",null,null,null,null,{"$f":"IF(TRIM(J27)=\"\", \"\", IF(VLOOKUP(J27,'Footnotes list'!$D$9:$E$107,2,FALSE)=0,\"\",VLOOKUP(J27,'Footnotes list'!$D$9:$E$107,2,FALSE) ) )","v":""}]
[null,"MIO_NAC","P2_SERV",null,"2.2","  Services input",null,{"$f":"IF(COUNT(H29,H30,H31,H32)=0,\"\",SUM(H29,H30,H31,H32))","v":""},null,null,{"$f":"IF(TRIM(J28)=\"\", \"\", IF(VLOOKUP(J28,'Footnotes list'!$D$9:$E$107,2,FALSE)=0,\"\",VLOOKUP(J28,'Footnotes list'!$D$9:$E$107,2,FALSE) ) )","v":""}]
[null,"MIO_NAC","P2_FL",null,"2.2.1","    Services characteristic of the forestry and logging activity (4)",null,null,null,null,{"$f":"IF(TRIM(J29)=\"\", \"\", IF(VLOOKUP(J29,'Footnotes list'!$D$9:$E$107,2,FALSE)=0,\"\",VLOOKUP(J29,'Footnotes list'!$D$9:$E$107,2,FALSE) ) )","v":""}]
[null,"MIO_NAC","P2_MREQ",null,"2.2.2","    Regular maintenance and repair of equipment (9)",null,null,null,null,{"$f":"IF(TRIM(J30)=\"\", \"\", IF(VLOOKUP(J30,'Footnotes list'!$D$9:$E$107,2,FALSE)=0,\"\",VLOOKUP(J30,'Footnotes list'!$D$9:$E$107,2,FALSE) ) )","v":""}]
[null,"MIO_NAC","P2_MBL",null,"2.2.3","    Maintenance of buildings (*)",null,null,null,null,{"$f":"IF(TRIM(J31)=\"\", \"\", IF(VLOOKUP(J31,'Footnotes list'!$D$9:$E$107,2,FALSE)=0,\"\",VLOOKUP(J31,'Footnotes list'!$D$9:$E$107,2,FALSE) ) )","v":""}]
[null,"MIO_NAC","P2_FISIM",null,"2.2.4","      Financial services (FISIM) [P.119]",null,null,null,null,{"$f":"IF(TRIM(J32)=\"\", \"\", IF(VLOOKUP(J32,'Footnotes list'!$D$9:$E$107,2,FALSE)=0,\"\",VLOOKUP(J32,'Footnotes list'!$D$9:$E$107,2,FALSE) ) )","v":""}]
[null,"MIO_NAC","P2_O",null,"2.3","  Other goods and services used as inputs (*)",null,null,null,null,{"$f":"IF(TRIM(J33)=\"\", \"\", IF(VLOOKUP(J33,'Footnotes list'!$D$9:$E$107,2,FALSE)=0,\"\",VLOOKUP(J33,'Footnotes list'!$D$9:$E$107,2,FALSE) ) )","v":""}]
[null,"MIO_NAC","B1G",null,"3","Gross value added (at basic prices) [B.1g]",null,{"$f":"IF(COUNT(H9,H22)=0,\"\",SUM(H9,-H22))","v":""},null,null,{"$f":"IF(TRIM(J34)=\"\", \"\", IF(VLOOKUP(J34,'Footnotes list'!$D$9:$E$107,2,FALSE)=0,\"\",VLOOKUP(J34,'Footnotes list'!$D$9:$E$107,2,FALSE) ) )","v":""}]
[null,"MIO_NAC","P51C",null,"3.1","  Consumption of fixed capital [P.51c]",null,null,null,null,{"$f":"IF(TRIM(J35)=\"\", \"\", IF(VLOOKUP(J35,'Footnotes list'!$D$9:$E$107,2,FALSE)=0,\"\",VLOOKUP(J35,'Footnotes list'!$D$9:$E$107,2,FALSE) ) )","v":""}]
[null,"MIO_NAC","B1N",null,"3.2","  Net value added (at basic prices) [B.1n]",null,{"$f":"IF(COUNT(H34,H35)=0,\"\",SUM(H34,-H35))","v":""},null,null,{"$f":"IF(TRIM(J36)=\"\", \"\", IF(VLOOKUP(J36,'Footnotes list'!$D$9:$E$107,2,FALSE)=0,\"\",VLOOKUP(J36,'Footnotes list'!$D$9:$E$107,2,FALSE) ) )","v":""}]
[null,"MIO_NAC","D29",null,"3.2.1","    Other taxes on production [D.29]",null,null,null,null,{"$f":"IF(TRIM(J37)=\"\", \"\", IF(VLOOKUP(J37,'Footnotes list'!$D$9:$E$107,2,FALSE)=0,\"\",VLOOKUP(J37,'Footnotes list'!$D$9:$E$107,2,FALSE) ) )","v":""}]
[null,"MIO_NAC","D39",null,"3.2.2","    Other subsidies on production [D.39]",null,null,null,null,{"$f":"IF(TRIM(J38)=\"\", \"\", IF(VLOOKUP(J38,'Footnotes list'!$D$9:$E$107,2,FALSE)=0,\"\",VLOOKUP(J38,'Footnotes list'!$D$9:$E$107,2,FALSE) ) )","v":""}]
[null,"MIO_NAC","FI",null,"4","Factor income",null,{"$f":"IF(COUNT(H36,H37,H38)=0,\"\",SUM(H36,-H37,H38))","v":""},null,null,{"$f":"IF(TRIM(J39)=\"\", \"\", IF(VLOOKUP(J39,'Footnotes list'!$D$9:$E$107,2,FALSE)=0,\"\",VLOOKUP(J39,'Footnotes list'!$D$9:$E$107,2,FALSE) ) )","v":""}]
[null,"MIO_NAC","D1",null,"4.1","  Compensation of employees [D.1]",null,null,null,null,{"$f":"IF(TRIM(J40)=\"\", \"\", IF(VLOOKUP(J40,'Footnotes list'!$D$9:$E$107,2,FALSE)=0,\"\",VLOOKUP(J40,'Footnotes list'!$D$9:$E$107,2,FALSE) ) )","v":""}]
[null,"MIO_NAC","B2A3N",null,"5","Net operating surplus [B.2n] and Mixed income [B.3n]",null,{"$f":"IF(COUNT(H39,H40)=0,\"\",SUM(H39,-H40))","v":""},null,null,{"$f":"IF(TRIM(J41)=\"\", \"\", IF(VLOOKUP(J41,'Footnotes list'!$D$9:$E$107,2,FALSE)=0,\"\",VLOOKUP(J41,'Footnotes list'!$D$9:$E$107,2,FALSE) ) )","v":""}]
[null,"MIO_NAC","D4",null,"5.1","  Net property income [D.4] (10)",null,null,null,null,{"$f":"IF(TRIM(J42)=\"\", \"\", IF(VLOOKUP(J42,'Footnotes list'!$D$9:$E$107,2,FALSE)=0,\"\",VLOOKUP(J42,'Footnotes list'!$D$9:$E$107,2,FALSE) ) )","v":""}]
[null,"MIO_NAC","B4N",null,"5.2","  Net entrepreneurial income [B.4n]",null,{"$f":"IF(COUNT(H41,H42)=0,\"\",SUM(H41,H42))","v":""},null,null,{"$f":"IF(TRIM(J43)=\"\", \"\", IF(VLOOKUP(J43,'Footnotes list'!$D$9:$E$107,2,FALSE)=0,\"\",VLOOKUP(J43,'Footnotes list'!$D$9:$E$107,2,FALSE) ) )","v":""}]
[null,"MIO_NAC","P51G",null,"6","Gross fixed capital formation (excluding deductible VAT) [P.51g]",null,{"$f":"IF(COUNT(H45,H46,H47,H48)=0,\"\",SUM(H45,H46,H47,H48))","v":""},null,null,{"$f":"IF(TRIM(J44)=\"\", \"\", IF(VLOOKUP(J44,'Footnotes list'!$D$9:$E$107,2,FALSE)=0,\"\",VLOOKUP(J44,'Footnotes list'!$D$9:$E$107,2,FALSE) ) )","v":""}]
[null,"MIO_NAC","P51G_BL",null,"6.1","Buildings, structures and land improvements",null,null,null,null,{"$f":"IF(TRIM(J45)=\"\", \"\", IF(VLOOKUP(J45,'Footnotes list'!$D$9:$E$107,2,FALSE)=0,\"\",VLOOKUP(J45,'Footnotes list'!$D$9:$E$107,2,FALSE) ) )","v":""}]
[null,"MIO_NAC","P51G_EQ",null,"6.2","Machinery and equipment",null,null,null,null,{"$f":"IF(TRIM(J46)=\"\", \"\", IF(VLOOKUP(J46,'Footnotes list'!$D$9:$E$107,2,FALSE)=0,\"\",VLOOKUP(J46,'Footnotes list'!$D$9:$E$107,2,FALSE) ) )","v":""}]
[null,"MIO_NAC","P51G_PRP",null,"6.3","  Plant resources yielding repeat products",null,null,null,null,{"$f":"IF(TRIM(J47)=\"\", \"\", IF(VLOOKUP(J47,'Footnotes list'!$D$9:$E$107,2,FALSE)=0,\"\",VLOOKUP(J47,'Footnotes list'!$D$9:$E$107,2,FALSE) ) )","v":""}]
[null,"MIO_NAC","P51G_O",null,"6.4","  Other GFCF(*)",null,null,null,null,{"$f":"IF(TRIM(J48)=\"\", \"\", IF(VLOOKUP(J48,'Footnotes list'!$D$9:$E$107,2,FALSE)=0,\"\",VLOOKUP(J48,'Footnotes list'!$D$9:$E$107,2,FALSE) ) )","v":""}]
[null,"MIO_NAC","P51N",null,"7","Net fixed capital formation (excluding deductible VAT) [P.51n]",null,{"$f":"IF(COUNT(H44,H35)=0,\"\",SUM(H44,-H35))","v":""},null,null,{"$f":"IF(TRIM(J49)=\"\", \"\", IF(VLOOKUP(J49,'Footnotes list'!$D$9:$E$107,2,FALSE)=0,\"\",VLOOKUP(J49,'Footnotes list'!$D$9:$E$107,2,FALSE) ) )","v":""}]
[null,"MIO_NAC","P52",null,"8","Changes in inventories [P.52]",null,{"$f":"IF(COUNT(H51,H52)=0,\"\",SUM(H51,H52))","v":""},null,null,{"$f":"IF(TRIM(J50)=\"\", \"\", IF(VLOOKUP(J50,'Footnotes list'!$D$9:$E$107,2,FALSE)=0,\"\",VLOOKUP(J50,'Footnotes list'!$D$9:$E$107,2,FALSE) ) )","v":""}]
[null,"MIO_NAC","P52_PRO",null,"8.1","  Work-in-progress on cultivated biological assets [AN.1221] (11)",null,null,null,null,{"$f":"IF(TRIM(J51)=\"\", \"\", IF(VLOOKUP(J51,'Footnotes list'!$D$9:$E$107,2,FALSE)=0,\"\",VLOOKUP(J51,'Footnotes list'!$D$9:$E$107,2,FALSE) ) )","v":""}]
[null,"MIO_NAC","P52_O",null,"8.2","  Other changes in inventories (*)",null,null,null,null,{"$f":"IF(TRIM(J52)=\"\", \"\", IF(VLOOKUP(J52,'Footnotes list'!$D$9:$E$107,2,FALSE)=0,\"\",VLOOKUP(J52,'Footnotes list'!$D$9:$E$107,2,FALSE) ) )","v":""}]
[null,"MIO_NAC","D9",null,"9","Capital transfers (net) [D.9] ",null,null,null,null,{"$f":"IF(TRIM(J53)=\"\", \"\", IF(VLOOKUP(J53,'Footnotes list'!$D$9:$E$107,2,FALSE)=0,\"\",VLOOKUP(J53,'Footnotes list'!$D$9:$E$107,2,FALSE) ) )","v":""}]
[]
[null,null,null,null,"Code","Description",null,"Thousand AWU","Standard footnotes","Explanatory\nfootnote"]
[null,"THS_AWU","EMP_DC",null,"10","Total labour input [L] (in 1000 harmonized AWU) (12)",null,{"$f":"IF(COUNT(H57,H58)=0,\" \",H57*H58/1800)","v":" "},null,null,{"$f":"IF(TRIM(J56)=\"\", \"\", IF(VLOOKUP(J56,'Footnotes list'!$D$9:$E$107,2,FALSE)=0,\"\",VLOOKUP(J56,'Footnotes list'!$D$9:$E$107,2,FALSE) ) )","v":""}]
[null,null,null,null,null,"Total labour input  in 1000 national AWU",null,null,null,null,{"$f":"IF(TRIM(J57)=\"\", \"\", IF(VLOOKUP(J57,'Footnotes list'!$D$9:$E$107,2,FALSE)=0,\"\",VLOOKUP(J57,'Footnotes list'!$D$9:$E$107,2,FALSE) ) )","v":""}]
[null,null,null,null,null,"Number of working hours per year in national AWU ",null,null,null,null,{"$f":"IF(TRIM(J58)=\"\", \"\", IF(VLOOKUP(J58,'Footnotes list'!$D$9:$E$107,2,FALSE)=0,\"\",VLOOKUP(J58,'Footnotes list'!$D$9:$E$107,2,FALSE) ) )","v":""}]
[null,"THS_AWU","SELF_DC",null,"10.1","  Of which self-employed (in 1000 harmonized AWU)",null,{"$f":"IF(COUNT(H60,H61)=0,\" \",H60*H61/1800)","v":" "},null,null,{"$f":"IF(TRIM(J59)=\"\", \"\", IF(VLOOKUP(J59,'Footnotes list'!$D$9:$E$107,2,FALSE)=0,\"\",VLOOKUP(J59,'Footnotes list'!$D$9:$E$107,2,FALSE) ) )","v":""}]
[null,null,null,null,null,"Self-employed  in 1000 national AWU",null,null,null,null,{"$f":"IF(TRIM(J60)=\"\", \"\", IF(VLOOKUP(J60,'Footnotes list'!$D$9:$E$107,2,FALSE)=0,\"\",VLOOKUP(J60,'Footnotes list'!$D$9:$E$107,2,FALSE) ) )","v":""}]
[null,null,null,null,null,"Number of working hours per year in national AWU for self-employed",null,null,null,null,{"$f":"IF(TRIM(J61)=\"\", \"\", IF(VLOOKUP(J61,'Footnotes list'!$D$9:$E$107,2,FALSE)=0,\"\",VLOOKUP(J61,'Footnotes list'!$D$9:$E$107,2,FALSE) ) )","v":""}]
[]
[null,null,null,null,"FOOTNOTES:"]
[null,null,null,null,"(1)","Forest tree output includes the net increment of timber in cultivated forests (02.10.30) and sales of timber from uncultivated forests. The value of forest trees is usually indicated in stumpage prices for standing timber. "]
[null,null,null,null,"(2)","Log output includes logs of coniferous wood (02.20.11), logs of non-coniferous wood, except tropical wood (02.20.12), logs of tropical wood (02.20.13) and any other wood in the rough except fuel wood."]
[null,null,null,null,"(3)","Non-wood product output includes natural gums (02.30.1), cork (02.30.2), parts of plants, grasses, mosses and lichens suitable for ornamental purposes (02.30.3),  wild-growing edible products (02.30.4) and any other wild-growing non-wood products.  "]
[null,null,null,null,"(4)","Characteristic services output and input include forest trees nursery services (02.10.2), support services to forestry (02.4) and any other services provided by a local Kind of Activity Unit (KAU) belonging to the forestry industry."]
[null,null,null,null,"(5)","Other products from connected secondary activities of the local KAUs belonging to the forestry industry are mushrooms and truffles (01.13.8), other berries, the fruits of the genus vaccinium n.e.c. (01.25.19), natural rubber (01.29.10), other wood in rough including split poles and pickets (16.10.39), wood charcoal (20.14.72), nature reserve services including wildlife preservation services (91.04.12) and any other product produced by a local KAU."]
[null,null,null,null,"(6)","Trees and tree plants used as input include live forest tree plants (02.10.11), forest tree seeds (02.10.12) and forest trees (02.10.3) bought to produce timber. The value of forest trees is usually indicated in stumpage prices for standing timber."]
[null,null,null,null,"(7)","Energy and lubricants used as input include electricity (35.11.10), motor spirit (gasoline) (19.20.21), natural gas, liquefied or in the gaseous state (06.20.10),  lubricating petroleum oils and heavy preparations n.e.c. (19.20.29) and other similar products. "]
[null,null,null,null,"(8)","Plant protection products and pesticides used as input include: insecticides (20.20.11), fungicides (20.20.15), herbicides (20.20.12) and other similar products."]
[null,null,null,null,"(9)","Regular maintenance and repair of equipment used as input includes repair and maintenance services of forestry machinery (33.12.21) and repair and maintenance services of motor vehicles (45.20). "]
[null,null,null,null,"(10)","Net property income includes interest [D.41], distributed income of corporations [D.42], reinvested earnings on foreign direct investment [D.43], other investment income [D.44] and rent [D.45] received, minus interest [D.41], property income and rent [D.45] paid. "]
[null,null,null,null,"(11)","This value can be approximated by the value of the net increment of timber cultivated in forests available for wood supply minus the value of the timber removed from those forests by logging, see Table A2b."]
[null,null,null,null,"(12)","One annual work unit (AWU) corresponds to the work performed by one person occupied on a full-time basis. Full-time means the minimum hours required by the relevant national provisions governing contracts of employment. Harmonized AWU for the purposes of EFA reporting represents 1 800 working hours, equivalent to 225 working days, per year. Please fill in data for items \"Total labour input  in 1000 national AWU\" and \"Number of working hours per year in national AWU\". Please fill these in even if 1 AWU used in your national reporting represents 1800 working hours per year, i.e. the same as the harmonized one. The harmonized value will be automatically calculated in item \"Total labour input [L] (in 1000 harmonized AWU)\" which will be published after validation. Values in national AWU will not be published by Eurostat; however, EFA metadata will clarify this. Please follow the same steps for the of-which item \"self-employed\"."]
[]
[null,null,null,null,"NOTES:"]
[null,null,null,null,"- CPA Ver. 2.1 (2015) and NACE Rev. 2 (2008) codes are indicated in round brackets;"]
[null,null,null,null,"- ESA 2010 codes are indicated in square brackets;"]
[null,null,null,null,"- Values in grey cells are priority information to be reported;"]
[null,null,null,null,"- Values in white cells are lower priority information."]
[null,null,null,null,"- Payments for hunting and fishing permits may be considered to be taxes if they are collected by government. The practice followed by  national accounts in each country varies and should be followed to avoid any double counting.  \nHowever, when permits for recreational hunting or fishing are issued by private landowners (in this case forest owners), their sales will generate a type of revenue. For the recording of the revenue from the sales of such permits, please follow the practice of national accounts in your country. It could be recorded under 5.1 \"Property income\" in certain cases, as described in ESA 2010, para 15.27 (a). \n"]
[]
[null,null,null,null,"(*) If other products /GFCF/inventories are included, please explain/specify:"]
[]
[]
[]
[null,null,null,null,"Data sources:"]
[]
[]
[]
[null,null,null,null,"Comments on the compilation of the table:"]

{"sheet":"EFA B 2","index":11,"n_rows":26,"n_cols":26,"rows_kept":26,"cut":false,"hidden":false,"merged":[[6,23,7,23],[6,24,7,25],[17,3,17,17],[20,3,20,17],[15,3,15,17],[18,0,18,1],[1,3,1,22],[2,3,2,22],[7,4,7,5],[6,3,6,5],[6,7,7,7],[6,8,7,9],[6,11,7,11],[6,12,7,13],[6,15,7,15],[6,16,7,17],[6,19,7,19],[6,20,7,21]]}
[]
[null,null,null,"Table B 2 - Output of the forest and logging industry by type"]
[null,null,null,"Output by economic type and institutional producing sector, in million national currency\nForestry and logging industry only"]
[null,"GEO =>",null,"Country:",{"$f":"'GETTING STARTED'!$G$9","v":""},{"$f":"IF('GETTING STARTED'!E9=\"\",\"\",'GETTING STARTED'!E9)","v":""}]
[null,"TIME=>",null,"Year:",{"$f":"IF('GETTING STARTED'!E10=\"\",\"\",'GETTING STARTED'!E10)","v":""},{"$f":"CONCATENATE(\"Currency: \", 'GETTING STARTED'!$E$11)","v":"Currency: "}]
[]
[null,null,null,"Economic aggregates (current transactions)",null,null,"31","Standard footnotes","Explanatory\nfootnote",null,"32","Standard footnotes","Explanatory\nfootnote",null,"33","Standard footnotes","Explanatory\nfootnote",null,"99","Standard footnotes","Explanatory\nfootnote",null,"41","Standard footnotes","Explanatory\nfootnote"]
[null,null,null,"Code","Description",null,"Own final use  [P.12]",null,null,null,"Market",null,null,null,"Non market",null,null,null,"Total",null,null,null,"of which: Households [S.14]"]
[null,null,null,"2","Output (at basic prices) [P.1]",null,{"$f":"IF(COUNT('EFA B 1'!H10)=0,\"\",SUM('EFA B 1'!H10))","v":""},null,null,{"$f":"IF(TRIM(I9)=\"\", \"\", IF(VLOOKUP(I9,'Footnotes list'!$D$9:$E$107,2,FALSE)=0,\"\",VLOOKUP(I9,'Footnotes list'!$D$9:$E$107,2,FALSE) ) )","v":""},{"$f":"IF(COUNT(S9,G9,O9)=0,\"\",SUM(S9,-G9,-O9))","v":""},null,null,{"$f":"IF(TRIM(M9)=\"\", \"\", IF(VLOOKUP(M9,'Footnotes list'!$D$9:$E$107,2,FALSE)=0,\"\",VLOOKUP(M9,'Footnotes list'!$D$9:$E$107,2,FALSE) ) )","v":""},null,null,null,{"$f":"IF(TRIM(Q9)=\"\", \"\", IF(VLOOKUP(Q9,'Footnotes list'!$D$9:$E$107,2,FALSE)=0,\"\",VLOOKUP(Q9,'Footnotes list'!$D$9:$E$107,2,FALSE) ) )","v":""},{"$f":"IF(COUNT('EFA B 1'!H9)=0,\"\",SUM('EFA B 1'!H9))","v":""},null,null,{"$f":"IF(TRIM(U9)=\"\", \"\", IF(VLOOKUP(U9,'Footnotes list'!$D$9:$E$107,2,FALSE)=0,\"\",VLOOKUP(U9,'Footnotes list'!$D$9:$E$107,2,FALSE) ) )","v":""},null,null,null,{"$f":"IF(TRIM(Y9)=\"\", \"\", IF(VLOOKUP(Y9,'Footnotes list'!$D$9:$E$107,2,FALSE)=0,\"\",VLOOKUP(Y9,'Footnotes list'!$D$9:$E$107,2,FALSE) ) )","v":""}]
[]
[null,null,null,"Formula for checking",null,null,null,null,null,null,null,null,null,null,null,null,null,null,null,null,null,null,{"$f":"IF(S9>=W9, \"OK\", \"Not OK\")","v":"OK"}]
[]
[null,null,null,"FOR_ACC",null,null,"P12",null,null,null,"P11",null,null,null,"P13",null,null,null,"P1",null,null,null,"P1_S14"]
[null,null,null,"NOTES:"]
[null,null,null,"- ESA 2010 codes are indicated in square brackets."]
[null,null,null,"- Every national statistical institute (its national accounts or government finance statistics department) needs to compile and regularly update: (i) a list of the general government entities by economic activity (NACE) and (ii) a list of the government-controlled units classified outside the general government sector ('public corporations') by economic activity (NACE). The general government sector entities are non-market units and the majority of their output is non-market output, while public corporations (entities controlled by government, but classified outside the general government sector) can only produce market output. This is relevant for public forests (forests controlled by the state) and data compilers should use this guidance to confirm to which unit and which sector such forests have been classified in the national accounts."]
[null,null,null,"Data sources:"]
[]
["Constants"]
["UNIT","MIO_NAC",null,"Comments on the compilation of the table:"]
["INDIC_FO","NAP"]
["STK_FLOW","TOTAL"]
["INDUSE","A02"]
["PROD_WD","NAP"]
["TREESPEC","TOTAL"]
["SOURCE_TABLE","B_2"]

{"sheet":"EFA B 3a","index":12,"n_rows":26,"n_cols":39,"rows_kept":26,"cut":false,"hidden":false,"merged":[[6,33,7,34],[6,36,7,36],[6,37,7,38],[16,4,16,18],[19,4,19,18],[6,12,7,12],[6,13,7,14],[6,16,7,16],[6,17,7,18],[6,32,7,32],[6,20,7,20],[6,21,7,22],[6,24,7,24],[6,25,7,26],[6,28,7,28],[6,29,7,30],[18,1,18,2],[7,5,7,6],[6,4,6,6],[6,8,7,8],[6,9,7,10]]}
[]
[null,null,null,null,"Table B 3 - Monetary supply and use of wood in the rough"]
[null,null,null,null,"(a) Supply of wood in the rough by all industries, in million national currency"]
[null,null,"GEO =>",null,"Country:",{"$f":"'GETTING STARTED'!G9","v":""},{"$f":"IF('GETTING STARTED'!E9=\"\",\"\",'GETTING STARTED'!E9)","v":""}]
[null,null,"TIME=>",null,"Year:",{"$f":"IF('GETTING STARTED'!E10=\"\",\"\",'GETTING STARTED'!E10)","v":""},{"$f":"CONCATENATE(\"Currency: \", 'GETTING STARTED'!$E$11)","v":"Currency: "}]
[]
[null,null,null,null,"SUPPLY\nEconomic aggregates (current transactions)",null,null,"51.0","Standard footnotes","Explanatory\nfootnote",null,"51.1","Standard footnotes","Explanatory\nfootnote",null,"51","Standard footnotes","Explanatory\nfootnote",null,"61","Standard footnotes","Explanatory\nfootnote",null,"62","Standard footnotes","Explanatory\nfootnote",null,"63","Standard footnotes","Explanatory\nfootnote",null,"64","Standard footnotes","Explanatory\nfootnote",null,"65","Standard footnotes","Explanatory\nfootnote"]
[null,null,null,null,"Code","Description",null,"Forestry and logging industry (Division 02)",null,null,null,"Other Industries\n(if any)",null,null,null,"Supply of products by industries",null,null,null,"Imports (CIF)",null,null,null,"Total supply (at basic prices)",null,null,null,"Trade and transport margins",null,null,null,"Taxes less subsides on products",null,null,null,"Total supply\n(at purchasers' prices)"]
[null,null,null,null,"1.1.3","  Wood in the rough (02.20.1)",null,null,null,null,{"$f":"IF(TRIM(J9)=\"\", \"\", IF(VLOOKUP(J9,'Footnotes list'!$D$9:$E$107,2,FALSE)=0,\"\",VLOOKUP(J9,'Footnotes list'!$D$9:$E$107,2,FALSE) ) )","v":""},null,null,null,{"$f":"IF(TRIM(N9)=\"\", \"\", IF(VLOOKUP(N9,'Footnotes list'!$D$9:$E$107,2,FALSE)=0,\"\",VLOOKUP(N9,'Footnotes list'!$D$9:$E$107,2,FALSE) ) )","v":""},{"$f":"IF(COUNT(H9,L9)=0,\"\",SUM(H9,L9))","v":""},null,null,{"$f":"IF(TRIM(R9)=\"\", \"\", IF(VLOOKUP(R9,'Footnotes list'!$D$9:$E$107,2,FALSE)=0,\"\",VLOOKUP(R9,'Footnotes list'!$D$9:$E$107,2,FALSE) ) )","v":""},null,null,null,{"$f":"IF(TRIM(V9)=\"\", \"\", IF(VLOOKUP(V9,'Footnotes list'!$D$9:$E$107,2,FALSE)=0,\"\",VLOOKUP(V9,'Footnotes list'!$D$9:$E$107,2,FALSE) ) )","v":""},{"$f":"IF(COUNT(P9,T9)=0,\"\",SUM(P9,T9))","v":""},null,null,{"$f":"IF(TRIM(Z9)=\"\", \"\", IF(VLOOKUP(Z9,'Footnotes list'!$D$9:$E$107,2,FALSE)=0,\"\",VLOOKUP(Z9,'Footnotes list'!$D$9:$E$107,2,FALSE) ) )","v":""},null,null,null,{"$f":"IF(TRIM(AD9)=\"\", \"\", IF(VLOOKUP(AD9,'Footnotes list'!$D$9:$E$107,2,FALSE)=0,\"\",VLOOKUP(AD9,'Footnotes list'!$D$9:$E$107,2,FALSE) ) )","v":""},null,null,null,{"$f":"IF(TRIM(AH9)=\"\", \"\", IF(VLOOKUP(AH9,'Footnotes list'!$D$9:$E$107,2,FALSE)=0,\"\",VLOOKUP(AH9,'Footnotes list'!$D$9:$E$107,2,FALSE) ) )","v":""},{"$f":"IF(COUNT(X9,AB9,AF9)=0,\"\",SUM(X9,AB9,AF9))","v":""},null,null,{"$f":"IF(TRIM(AL9)=\"\", \"\", IF(VLOOKUP(AL9,'Footnotes list'!$D$9:$E$107,2,FALSE)=0,\"\",VLOOKUP(AL9,'Footnotes list'!$D$9:$E$107,2,FALSE) ) )","v":""}]
[]
[null,null,null,null,"INDUSE",null,null,"A02",null,null,null,"TOT_X_A02",null,null,null,"TOTAL",null,null,null,"P7",null,null,null,"TS_BP",null,null,null,"OTTM",null,null,null,"D21X31",null,null,null,"TS_PP"]
[null,null,null,null,"NOTES:"]
[null,null,null,null,"- CPA Ver. 2.1 (2015) and NACE Rev. 2 (2008) codes are indicated in round brackets;"]
[null,null,null,null,"- Imports are reported at 'Cost, Insurance and Freight' (CIF) prices."]
[]
[null,null,null,null,"Data sources:"]
[]
[]
[null,"Constants",null,null,"Comments on the compilation of the table:"]
[null,"UNIT","MIO_NAC"]
[null,"INDIC_FO","NAP"]
[null,"STK_FLOW","SUP"]
[null,"FOR_ACC","NAP"]
[null,"PROD_WD","NAP"]
[null,"TREESPEC","TOTAL"]
[null,"SOURCE_TABLE","B_3A"]

{"sheet":"EFA B 3b","index":13,"n_rows":26,"n_cols":35,"rows_kept":26,"cut":false,"hidden":false,"merged":[[20,4,20,18],[23,4,23,18],[6,28,7,28],[6,29,7,30],[6,32,7,32],[6,33,7,34],[6,4,6,6],[18,1,18,2],[7,5,7,6],[6,8,7,8],[6,9,7,10],[6,12,7,12],[6,13,7,14],[6,16,7,16],[6,17,7,18],[6,20,7,20],[6,21,7,22],[6,24,7,24],[6,25,7,26],[13,4,13,18]]}
[]
[null,null,null,null,"Table B 3 - Monetary supply and use of wood in the rough"]
[null,null,null,null,"(b) Use of wood in the rough by all industries, in million national currency"]
[null,null,"GEO =>",null,"Country:",{"$f":"'GETTING STARTED'!G9","v":""},{"$f":"IF('GETTING STARTED'!E9=\"\",\"\",'GETTING STARTED'!E9)","v":""}]
[null,null,"TIME=>",null,"Year:",{"$f":"IF('GETTING STARTED'!E10=\"\",\"\",'GETTING STARTED'!E10)","v":""},{"$f":"CONCATENATE(\"Currency: \", 'GETTING STARTED'!$E$11)","v":"Currency: "}]
[]
[null,null,null,null,"USE\nEconomic aggregates (current transactions) \n",null,null,"51.0","Standard footnotes","Explanatory\nfootnote",null,"51.1","Standard footnotes","Explanatory\nfootnote",null,"51","Standard footnotes","Explanatory\nfootnote",null,"71","Standard footnotes","Explanatory\nfootnote",null,"72","Standard footnotes","Explanatory\nfootnote",null,"73","Standard footnotes","Explanatory\nfootnote",null,"74","Standard footnotes","Explanatory\nfootnote"]
[null,null,null,null,"Code","Description",null,"Forestry and logging industry\n (Division 02)\n(if any)",null,null,null,"Other industries",null,null,null,"Use of products by industries",null,null,null,"Final Consumption",null,null,null,"Capital formation",null,null,null,"Exports (FOB)",null,null,null,"Total use\n(at purchasers' prices)"]
[null,null,null,null,"1.1.3.20","   Wood in the rough (02.20.1)",null,null,null,null,{"$f":"IF(TRIM(J9)=\"\", \"\", IF(VLOOKUP(J9,'Footnotes list'!$D$9:$E$107,2,FALSE)=0,\"\",VLOOKUP(J9,'Footnotes list'!$D$9:$E$107,2,FALSE) ) )","v":""},null,null,null,{"$f":"IF(TRIM(N9)=\"\", \"\", IF(VLOOKUP(N9,'Footnotes list'!$D$9:$E$107,2,FALSE)=0,\"\",VLOOKUP(N9,'Footnotes list'!$D$9:$E$107,2,FALSE) ) )","v":""},{"$f":"IF(COUNT(H9,L9)=0,\"\",SUM(H9,L9))","v":""},null,null,{"$f":"IF(TRIM(R9)=\"\", \"\", IF(VLOOKUP(R9,'Footnotes list'!$D$9:$E$107,2,FALSE)=0,\"\",VLOOKUP(R9,'Footnotes list'!$D$9:$E$107,2,FALSE) ) )","v":""},null,null,null,{"$f":"IF(TRIM(V9)=\"\", \"\", IF(VLOOKUP(V9,'Footnotes list'!$D$9:$E$107,2,FALSE)=0,\"\",VLOOKUP(V9,'Footnotes list'!$D$9:$E$107,2,FALSE) ) )","v":""},null,null,null,{"$f":"IF(TRIM(Z9)=\"\", \"\", IF(VLOOKUP(Z9,'Footnotes list'!$D$9:$E$107,2,FALSE)=0,\"\",VLOOKUP(Z9,'Footnotes list'!$D$9:$E$107,2,FALSE) ) )","v":""},null,null,null,{"$f":"IF(TRIM(AD9)=\"\", \"\", IF(VLOOKUP(AD9,'Footnotes list'!$D$9:$E$107,2,FALSE)=0,\"\",VLOOKUP(AD9,'Footnotes list'!$D$9:$E$107,2,FALSE) ) )","v":""},{"$f":"IF(COUNT(P9,T9,X9,AB9)=0,\"\",SUM(P9,T9,X9,AB9))","v":""},null,null,{"$f":"IF(TRIM(AH9)=\"\", \"\", IF(VLOOKUP(AH9,'Footnotes list'!$D$9:$E$107,2,FALSE)=0,\"\",VLOOKUP(AH9,'Footnotes list'!$D$9:$E$107,2,FALSE) ) )","v":""}]
[]
[null,null,null,null,"INDUSE",null,null,"A02",null,null,null,"TOT_X_A02",null,null,null,"TOTAL",null,null,null,"P3",null,null,null,"P5",null,null,null,"P6",null,null,null,"TU_PP"]
[]
[null,null,null,null,"(*) If products are included for other industries besides Forestry and logging (Div. 02), please explain:"]
[]
[]
[null,null,null,null,"NOTES:"]
[null,null,null,null,"- CPA Ver. 2.1 (2015) and NACE Rev. 2 (2008) codes are indicated in round brackets;"]
[null,null,null,null,"- Exports are reported at 'Free On Board' (FOB) prices of the exporting country."]
[null,"Constants"]
[null,"UNIT","MIO_NAC",null,"Data sources:"]
[null,"INDIC_FO","NAP"]
[null,"STK_FLOW","USE"]
[null,"FOR_ACC","NAP",null,"Comments on the compilation of the table:"]
[null,"PROD_WD","NAP"]
[null,"TREESPEC","TOTAL"]
[null,"SOURCE_TABLE","B_3B"]

{"sheet":"EFA C 1a","index":14,"n_rows":32,"n_cols":27,"rows_kept":32,"cut":false,"hidden":false,"merged":[[6,24,7,24],[6,25,7,26],[29,4,29,18],[32,4,32,18],[6,4,6,6],[6,12,7,12],[6,13,7,14],[6,16,7,16],[6,17,7,18],[6,20,7,20],[6,21,7,22],[18,1,18,2],[19,4,21,4],[7,5,7,6],[6,8,7,8],[6,9,7,10]]}
[]
[null,null,null,null,"Table C 1 - Physical supply and use of wood in the rough"]
[null,null,null,null,"(a) Supply of wood in the rough by all industries, in 1000 m3 over bark"]
[null,null,"GEO =>",null,"Country:",{"$f":"'GETTING STARTED'!G9","v":""},{"$f":"IF('GETTING STARTED'!E9=\"\",\"\",'GETTING STARTED'!E9)","v":""}]
[null,null,"TIME=>",null,"Year:",{"$f":"IF('GETTING STARTED'!E10=\"\",\"\",'GETTING STARTED'!E10)","v":""},{"$f":"CONCATENATE(\"Currency: \", 'GETTING STARTED'!$E$11)","v":"Currency: "}]
[]
[null,null,null,null,"SUPPLY - Physical aggregates (current transactions)",null,null,"51.0","Standard footnotes","Explanatory\nfootnote",null,"51.1","Standard footnotes","Explanatory\nfootnote",null,"51","Standard footnotes","Explanatory\nfootnote",null,"60","Standard footnotes","Explanatory\nfootnote",null,"99","Standard footnotes","Explanatory\nfootnote"]
[null,"PROD_WD","TREESPEC",null,"Code","Description",null,"Forestry and logging industry (Division 02)",null,null,null,"Other industries (if any)",null,null,null,"Supply of products by industries",null,null,null,"Imports",null,null,null,"Total supply"]
[null,"RW","TOTAL",null,"1.1.3","   Wood in the rough (02.20.1)",null,null,null,null,{"$f":"IF(TRIM(J9)=\"\", \"\", IF(VLOOKUP(J9,'Footnotes list'!$D$9:$E$107,2,FALSE)=0,\"\",VLOOKUP(J9,'Footnotes list'!$D$9:$E$107,2,FALSE) ) )","v":""},null,null,null,{"$f":"IF(TRIM(N9)=\"\", \"\", IF(VLOOKUP(N9,'Footnotes list'!$D$9:$E$107,2,FALSE)=0,\"\",VLOOKUP(N9,'Footnotes list'!$D$9:$E$107,2,FALSE) ) )","v":""},{"$f":"IF(COUNT(H9,L9)=0,\"\",SUM(H9,L9))","v":""},null,null,{"$f":"IF(TRIM(R9)=\"\", \"\", IF(VLOOKUP(R9,'Footnotes list'!$D$9:$E$107,2,FALSE)=0,\"\",VLOOKUP(R9,'Footnotes list'!$D$9:$E$107,2,FALSE) ) )","v":""},null,null,null,{"$f":"IF(TRIM(V9)=\"\", \"\", IF(VLOOKUP(V9,'Footnotes list'!$D$9:$E$107,2,FALSE)=0,\"\",VLOOKUP(V9,'Footnotes list'!$D$9:$E$107,2,FALSE) ) )","v":""},{"$f":"IF(COUNT(P9,T9)=0,\"\",SUM(P9,T9))","v":""},null,null,{"$f":"IF(TRIM(Z9)=\"\", \"\", IF(VLOOKUP(Z9,'Footnotes list'!$D$9:$E$107,2,FALSE)=0,\"\",VLOOKUP(Z9,'Footnotes list'!$D$9:$E$107,2,FALSE) ) )","v":""}]
[null,"RW_IN","TOTAL",null,"1.1.3.1","      Logs",null,null,null,null,{"$f":"IF(TRIM(J10)=\"\", \"\", IF(VLOOKUP(J10,'Footnotes list'!$D$9:$E$107,2,FALSE)=0,\"\",VLOOKUP(J10,'Footnotes list'!$D$9:$E$107,2,FALSE) ) )","v":""},null,null,null,{"$f":"IF(TRIM(N10)=\"\", \"\", IF(VLOOKUP(N10,'Footnotes list'!$D$9:$E$107,2,FALSE)=0,\"\",VLOOKUP(N10,'Footnotes list'!$D$9:$E$107,2,FALSE) ) )","v":""},{"$f":"IF(COUNT(H10,L10)=0,\"\",SUM(H10,L10))","v":""},null,null,{"$f":"IF(TRIM(R10)=\"\", \"\", IF(VLOOKUP(R10,'Footnotes list'!$D$9:$E$107,2,FALSE)=0,\"\",VLOOKUP(R10,'Footnotes list'!$D$9:$E$107,2,FALSE) ) )","v":""},null,null,null,{"$f":"IF(TRIM(V10)=\"\", \"\", IF(VLOOKUP(V10,'Footnotes list'!$D$9:$E$107,2,FALSE)=0,\"\",VLOOKUP(V10,'Footnotes list'!$D$9:$E$107,2,FALSE) ) )","v":""},{"$f":"IF(COUNT(P10,T10)=0,\"\",SUM(P10,T10))","v":""},null,null,{"$f":"IF(TRIM(Z10)=\"\", \"\", IF(VLOOKUP(Z10,'Footnotes list'!$D$9:$E$107,2,FALSE)=0,\"\",VLOOKUP(Z10,'Footnotes list'!$D$9:$E$107,2,FALSE) ) )","v":""}]
[null,"RW_IN","CONIF",null,"1.1.3.1.1","         Coniferous wood (02.20.11)",null,null,null,null,{"$f":"IF(TRIM(J11)=\"\", \"\", IF(VLOOKUP(J11,'Footnotes list'!$D$9:$E$107,2,FALSE)=0,\"\",VLOOKUP(J11,'Footnotes list'!$D$9:$E$107,2,FALSE) ) )","v":""},null,null,null,{"$f":"IF(TRIM(N11)=\"\", \"\", IF(VLOOKUP(N11,'Footnotes list'!$D$9:$E$107,2,FALSE)=0,\"\",VLOOKUP(N11,'Footnotes list'!$D$9:$E$107,2,FALSE) ) )","v":""},null,null,null,{"$f":"IF(TRIM(R11)=\"\", \"\", IF(VLOOKUP(R11,'Footnotes list'!$D$9:$E$107,2,FALSE)=0,\"\",VLOOKUP(R11,'Footnotes list'!$D$9:$E$107,2,FALSE) ) )","v":""},null,null,null,{"$f":"IF(TRIM(V11)=\"\", \"\", IF(VLOOKUP(V11,'Footnotes list'!$D$9:$E$107,2,FALSE)=0,\"\",VLOOKUP(V11,'Footnotes list'!$D$9:$E$107,2,FALSE) ) )","v":""},null,null,null,{"$f":"IF(TRIM(Z11)=\"\", \"\", IF(VLOOKUP(Z11,'Footnotes list'!$D$9:$E$107,2,FALSE)=0,\"\",VLOOKUP(Z11,'Footnotes list'!$D$9:$E$107,2,FALSE) ) )","v":""}]
[null,"RW_IN","NCONIF",null,"1.1.3.1.2","         Non-coniferous wood, except tropical wood (02.20.12)",null,null,null,null,{"$f":"IF(TRIM(J12)=\"\", \"\", IF(VLOOKUP(J12,'Footnotes list'!$D$9:$E$107,2,FALSE)=0,\"\",VLOOKUP(J12,'Footnotes list'!$D$9:$E$107,2,FALSE) ) )","v":""},null,null,null,{"$f":"IF(TRIM(N12)=\"\", \"\", IF(VLOOKUP(N12,'Footnotes list'!$D$9:$E$107,2,FALSE)=0,\"\",VLOOKUP(N12,'Footnotes list'!$D$9:$E$107,2,FALSE) ) )","v":""},null,null,null,{"$f":"IF(TRIM(R12)=\"\", \"\", IF(VLOOKUP(R12,'Footnotes list'!$D$9:$E$107,2,FALSE)=0,\"\",VLOOKUP(R12,'Footnotes list'!$D$9:$E$107,2,FALSE) ) )","v":""},null,null,null,{"$f":"IF(TRIM(V12)=\"\", \"\", IF(VLOOKUP(V12,'Footnotes list'!$D$9:$E$107,2,FALSE)=0,\"\",VLOOKUP(V12,'Footnotes list'!$D$9:$E$107,2,FALSE) ) )","v":""},null,null,null,{"$f":"IF(TRIM(Z12)=\"\", \"\", IF(VLOOKUP(Z12,'Footnotes list'!$D$9:$E$107,2,FALSE)=0,\"\",VLOOKUP(Z12,'Footnotes list'!$D$9:$E$107,2,FALSE) ) )","v":""}]
[null,"RW_IN","NC_TRO",null,"1.1.3.1.3","         Tropical wood (02.20.13)",null,null,null,null,{"$f":"IF(TRIM(J13)=\"\", \"\", IF(VLOOKUP(J13,'Footnotes list'!$D$9:$E$107,2,FALSE)=0,\"\",VLOOKUP(J13,'Footnotes list'!$D$9:$E$107,2,FALSE) ) )","v":""},null,null,null,{"$f":"IF(TRIM(N13)=\"\", \"\", IF(VLOOKUP(N13,'Footnotes list'!$D$9:$E$107,2,FALSE)=0,\"\",VLOOKUP(N13,'Footnotes list'!$D$9:$E$107,2,FALSE) ) )","v":""},null,null,null,{"$f":"IF(TRIM(R13)=\"\", \"\", IF(VLOOKUP(R13,'Footnotes list'!$D$9:$E$107,2,FALSE)=0,\"\",VLOOKUP(R13,'Footnotes list'!$D$9:$E$107,2,FALSE) ) )","v":""},null,null,null,{"$f":"IF(TRIM(V13)=\"\", \"\", IF(VLOOKUP(V13,'Footnotes list'!$D$9:$E$107,2,FALSE)=0,\"\",VLOOKUP(V13,'Footnotes list'!$D$9:$E$107,2,FALSE) ) )","v":""},null,null,null,{"$f":"IF(TRIM(Z13)=\"\", \"\", IF(VLOOKUP(Z13,'Footnotes list'!$D$9:$E$107,2,FALSE)=0,\"\",VLOOKUP(Z13,'Footnotes list'!$D$9:$E$107,2,FALSE) ) )","v":""}]
[null,"RW_FW","TOTAL",null,"1.1.3.2","      Fuel wood ",null,null,null,null,{"$f":"IF(TRIM(J14)=\"\", \"\", IF(VLOOKUP(J14,'Footnotes list'!$D$9:$E$107,2,FALSE)=0,\"\",VLOOKUP(J14,'Footnotes list'!$D$9:$E$107,2,FALSE) ) )","v":""},null,null,null,{"$f":"IF(TRIM(N14)=\"\", \"\", IF(VLOOKUP(N14,'Footnotes list'!$D$9:$E$107,2,FALSE)=0,\"\",VLOOKUP(N14,'Footnotes list'!$D$9:$E$107,2,FALSE) ) )","v":""},{"$f":"IF(COUNT(H14,L14)=0,\"\",SUM(H14,L14))","v":""},null,null,{"$f":"IF(TRIM(R14)=\"\", \"\", IF(VLOOKUP(R14,'Footnotes list'!$D$9:$E$107,2,FALSE)=0,\"\",VLOOKUP(R14,'Footnotes list'!$D$9:$E$107,2,FALSE) ) )","v":""},null,null,null,{"$f":"IF(TRIM(V14)=\"\", \"\", IF(VLOOKUP(V14,'Footnotes list'!$D$9:$E$107,2,FALSE)=0,\"\",VLOOKUP(V14,'Footnotes list'!$D$9:$E$107,2,FALSE) ) )","v":""},{"$f":"IF(COUNT(P14,T14)=0,\"\",SUM(P14,T14))","v":""},null,null,{"$f":"IF(TRIM(Z14)=\"\", \"\", IF(VLOOKUP(Z14,'Footnotes list'!$D$9:$E$107,2,FALSE)=0,\"\",VLOOKUP(Z14,'Footnotes list'!$D$9:$E$107,2,FALSE) ) )","v":""}]
[null,"RW_FW","CONIF",null,"1.1.3.2.1","         Fuel wood of coniferous wood (02.20.14)",null,null,null,null,{"$f":"IF(TRIM(J15)=\"\", \"\", IF(VLOOKUP(J15,'Footnotes list'!$D$9:$E$107,2,FALSE)=0,\"\",VLOOKUP(J15,'Footnotes list'!$D$9:$E$107,2,FALSE) ) )","v":""},null,null,null,{"$f":"IF(TRIM(N15)=\"\", \"\", IF(VLOOKUP(N15,'Footnotes list'!$D$9:$E$107,2,FALSE)=0,\"\",VLOOKUP(N15,'Footnotes list'!$D$9:$E$107,2,FALSE) ) )","v":""},null,null,null,{"$f":"IF(TRIM(R15)=\"\", \"\", IF(VLOOKUP(R15,'Footnotes list'!$D$9:$E$107,2,FALSE)=0,\"\",VLOOKUP(R15,'Footnotes list'!$D$9:$E$107,2,FALSE) ) )","v":""},null,null,null,{"$f":"IF(TRIM(V15)=\"\", \"\", IF(VLOOKUP(V15,'Footnotes list'!$D$9:$E$107,2,FALSE)=0,\"\",VLOOKUP(V15,'Footnotes list'!$D$9:$E$107,2,FALSE) ) )","v":""},null,null,null,{"$f":"IF(TRIM(Z15)=\"\", \"\", IF(VLOOKUP(Z15,'Footnotes list'!$D$9:$E$107,2,FALSE)=0,\"\",VLOOKUP(Z15,'Footnotes list'!$D$9:$E$107,2,FALSE) ) )","v":""}]
[null,"RW_FW","NCONIF",null,"1.1.3.2.2","         Fuel wood of non-coniferous wood (02.20.15)",null,null,null,null,{"$f":"IF(TRIM(J16)=\"\", \"\", IF(VLOOKUP(J16,'Footnotes list'!$D$9:$E$107,2,FALSE)=0,\"\",VLOOKUP(J16,'Footnotes list'!$D$9:$E$107,2,FALSE) ) )","v":""},null,null,null,{"$f":"IF(TRIM(N16)=\"\", \"\", IF(VLOOKUP(N16,'Footnotes list'!$D$9:$E$107,2,FALSE)=0,\"\",VLOOKUP(N16,'Footnotes list'!$D$9:$E$107,2,FALSE) ) )","v":""},null,null,null,{"$f":"IF(TRIM(R16)=\"\", \"\", IF(VLOOKUP(R16,'Footnotes list'!$D$9:$E$107,2,FALSE)=0,\"\",VLOOKUP(R16,'Footnotes list'!$D$9:$E$107,2,FALSE) ) )","v":""},null,null,null,{"$f":"IF(TRIM(V16)=\"\", \"\", IF(VLOOKUP(V16,'Footnotes list'!$D$9:$E$107,2,FALSE)=0,\"\",VLOOKUP(V16,'Footnotes list'!$D$9:$E$107,2,FALSE) ) )","v":""},null,null,null,{"$f":"IF(TRIM(Z16)=\"\", \"\", IF(VLOOKUP(Z16,'Footnotes list'!$D$9:$E$107,2,FALSE)=0,\"\",VLOOKUP(Z16,'Footnotes list'!$D$9:$E$107,2,FALSE) ) )","v":""}]
[]
[null,null,null,null,"INDUSE",null,null,"A02",null,null,null,"TOT_X_A02",null,null,null,"TOTAL",null,null,null,"P7",null,null,null,"TS"]
[null,"Constants"]
[null,"UNIT","THS_M3",null,"Formulas for checking","Wood in the rough (02.20.1)",null,{"$f":"IF(COUNT(H10,H14)=0,\"\",SUM(H10,H14))","v":""},null,null,null,{"$f":"IF(COUNT(L10,L14)=0,\"\",SUM(L10,L14))","v":""},null,null,null,{"$f":"IF(COUNT(P10,P14)=0,\"\",SUM(P10,P14))","v":""},null,null,null,{"$f":"IF(COUNT(T10,T14)=0,\"\",SUM(T10,T14))","v":""},null,null,null,{"$f":"IF(COUNT(X10,X14)=0,\"\",SUM(X10,X14))","v":""}]
[null,"INDIC_FO","NAP",null,null,"Logs",null,{"$f":"IF(COUNT(H11,H12,H13)=0,\"\",SUM(H11,H12,H13))","v":""},null,null,null,{"$f":"IF(COUNT(L11,L12,L13)=0,\"\",SUM(L11,L12,L13))","v":""},null,null,null,{"$f":"IF(COUNT(P11,P12,P13)=0,\"\",SUM(P11,P12,P13))","v":""},null,null,null,{"$f":"IF(COUNT(T11,T12,T13)=0,\"\",SUM(T11,T12,T13))","v":""},null,null,null,{"$f":"IF(COUNT(X11,X12,X13)=0,\"\",SUM(X11,X12,X13))","v":""}]
[null,"STK_FLOW","SUP",null,null,"Fuel wood ",null,{"$f":"IF(COUNT(H15,H16)=0,\"\",SUM(H15,H16))","v":""},null,null,null,{"$f":"IF(COUNT(L15,L16)=0,\"\",SUM(L15,L16))","v":""},null,null,null,{"$f":"IF(COUNT(P15,P16)=0,\"\",SUM(P15,P16))","v":""},null,null,null,{"$f":"IF(COUNT(T15,T16)=0,\"\",SUM(T15,T16))","v":""},null,null,null,{"$f":"IF(COUNT(X15,X16)=0,\"\",SUM(X15,X16))","v":""}]
[null,"FOR_ACC","NAP"]
[null,"SOURCE_TABLE","C_1A",null,"NOTES:"]
[null,null,null,null,"- CPA Ver. 2.1 (2015) and NACE Rev. 2 (2008) codes are indicated in round brackets;"]
[null,null,null,null,"- Values in grey cells are priority information to be reported;"]
[null,null,null,null,"- Values in white cells are lower priority information."]
[]
[null,null,null,null,"Data sources:"]
[]
[]
[null,null,null,null,"Comments on the compilation of the table:"]

{"sheet":"EFA C 1b","index":15,"n_rows":33,"n_cols":31,"rows_kept":33,"cut":false,"hidden":false,"merged":[[6,24,7,24],[18,1,18,2],[6,25,7,26],[6,28,7,28],[6,29,7,30],[6,20,7,20],[6,21,7,22],[30,4,30,18],[33,4,33,18],[19,4,21,4],[7,5,7,6],[6,4,6,6],[6,8,7,8],[6,9,7,10],[6,12,7,12],[6,13,7,14],[6,16,7,16],[6,17,7,18]]}
[]
[null,null,null,null,"Table C 1 - Physical supply and use of wood in the rough"]
[null,null,null,null,"(b) Use of wood in the rough by all industries, in 1000 m3 over bark"]
[null,null,"GEO =>",null,"Country:",{"$f":"'GETTING STARTED'!G9","v":""},{"$f":"IF('GETTING STARTED'!E9=\"\",\"\",'GETTING STARTED'!E9)","v":""}]
[null,null,"TIME=>",null,"Year:",{"$f":"IF('GETTING STARTED'!E10=\"\",\"\",'GETTING STARTED'!E10)","v":""},{"$f":"CONCATENATE(\"Currency: \", 'GETTING STARTED'!$E$11)","v":"Currency: "}]
[]
[null,null,null,null,"USE - Physical aggregates (current transactions)",null,null,"51.0","Standard footnotes","Explanatory\nfootnote",null,"51.1","Standard footnotes","Explanatory\nfootnote",null,"51","Standard footnotes","Explanatory\nfootnote",null,"71","Standard footnotes","Explanatory\nfootnote",null,"72","Standard footnotes","Explanatory\nfootnote",null,"99","Standard footnotes","Explanatory\nfootnote"]
[null,"PROD_WD","TREESPEC",null,"Code","Description",null,"Forestry and logging industry (Division 02) (if any)",null,null,null,"Other industries",null,null,null,"Use of products by industries",null,null,null,"Final consumption and capital formation",null,null,null,"Exports",null,null,null,"Total use"]
[null,"RW","TOTAL",null,"1.1.3.20","   Wood in the rough (02.20.1)",null,null,null,null,{"$f":"IF(TRIM(J9)=\"\", \"\", IF(VLOOKUP(J9,'Footnotes list'!$D$9:$E$107,2,FALSE)=0,\"\",VLOOKUP(J9,'Footnotes list'!$D$9:$E$107,2,FALSE) ) )","v":""},null,null,null,{"$f":"IF(TRIM(N9)=\"\", \"\", IF(VLOOKUP(N9,'Footnotes list'!$D$9:$E$107,2,FALSE)=0,\"\",VLOOKUP(N9,'Footnotes list'!$D$9:$E$107,2,FALSE) ) )","v":""},{"$f":"IF(COUNT(H9,L9)=0,\"\",SUM(H9,L9))","v":""},null,null,{"$f":"IF(TRIM(R9)=\"\", \"\", IF(VLOOKUP(R9,'Footnotes list'!$D$9:$E$107,2,FALSE)=0,\"\",VLOOKUP(R9,'Footnotes list'!$D$9:$E$107,2,FALSE) ) )","v":""},null,null,null,{"$f":"IF(TRIM(V9)=\"\", \"\", IF(VLOOKUP(V9,'Footnotes list'!$D$9:$E$107,2,FALSE)=0,\"\",VLOOKUP(V9,'Footnotes list'!$D$9:$E$107,2,FALSE) ) )","v":""},null,null,null,{"$f":"IF(TRIM(Z9)=\"\", \"\", IF(VLOOKUP(Z9,'Footnotes list'!$D$9:$E$107,2,FALSE)=0,\"\",VLOOKUP(Z9,'Footnotes list'!$D$9:$E$107,2,FALSE) ) )","v":""},{"$f":"IF(COUNT(P9,T9,X9)=0,\"\",SUM(P9,T9,X9))","v":""},null,null,{"$f":"IF(TRIM(AD9)=\"\", \"\", IF(VLOOKUP(AD9,'Footnotes list'!$D$9:$E$107,2,FALSE)=0,\"\",VLOOKUP(AD9,'Footnotes list'!$D$9:$E$107,2,FALSE) ) )","v":""}]
[null,"RW_IN","TOTAL",null,"1.1.3.1.20","      Logs",null,null,null,null,{"$f":"IF(TRIM(J10)=\"\", \"\", IF(VLOOKUP(J10,'Footnotes list'!$D$9:$E$107,2,FALSE)=0,\"\",VLOOKUP(J10,'Footnotes list'!$D$9:$E$107,2,FALSE) ) )","v":""},null,null,null,{"$f":"IF(TRIM(N10)=\"\", \"\", IF(VLOOKUP(N10,'Footnotes list'!$D$9:$E$107,2,FALSE)=0,\"\",VLOOKUP(N10,'Footnotes list'!$D$9:$E$107,2,FALSE) ) )","v":""},{"$f":"IF(COUNT(H10,L10)=0,\"\",SUM(H10,L10))","v":""},null,null,{"$f":"IF(TRIM(R10)=\"\", \"\", IF(VLOOKUP(R10,'Footnotes list'!$D$9:$E$107,2,FALSE)=0,\"\",VLOOKUP(R10,'Footnotes list'!$D$9:$E$107,2,FALSE) ) )","v":""},null,null,null,{"$f":"IF(TRIM(V10)=\"\", \"\", IF(VLOOKUP(V10,'Footnotes list'!$D$9:$E$107,2,FALSE)=0,\"\",VLOOKUP(V10,'Footnotes list'!$D$9:$E$107,2,FALSE) ) )","v":""},null,null,null,{"$f":"IF(TRIM(Z10)=\"\", \"\", IF(VLOOKUP(Z10,'Footnotes list'!$D$9:$E$107,2,FALSE)=0,\"\",VLOOKUP(Z10,'Footnotes list'!$D$9:$E$107,2,FALSE) ) )","v":""},{"$f":"IF(COUNT(P10,T10,X10)=0,\"\",SUM(P10,T10,X10))","v":""},null,null,{"$f":"IF(TRIM(AD10)=\"\", \"\", IF(VLOOKUP(AD10,'Footnotes list'!$D$9:$E$107,2,FALSE)=0,\"\",VLOOKUP(AD10,'Footnotes list'!$D$9:$E$107,2,FALSE) ) )","v":""}]
[null,"RW_IN","CONIF",null,"1.1.3.1.1.20","         Coniferous wood (02.20.11)",null,null,null,null,{"$f":"IF(TRIM(J11)=\"\", \"\", IF(VLOOKUP(J11,'Footnotes list'!$D$9:$E$107,2,FALSE)=0,\"\",VLOOKUP(J11,'Footnotes list'!$D$9:$E$107,2,FALSE) ) )","v":""},null,null,null,{"$f":"IF(TRIM(N11)=\"\", \"\", IF(VLOOKUP(N11,'Footnotes list'!$D$9:$E$107,2,FALSE)=0,\"\",VLOOKUP(N11,'Footnotes list'!$D$9:$E$107,2,FALSE) ) )","v":""},null,null,null,{"$f":"IF(TRIM(R11)=\"\", \"\", IF(VLOOKUP(R11,'Footnotes list'!$D$9:$E$107,2,FALSE)=0,\"\",VLOOKUP(R11,'Footnotes list'!$D$9:$E$107,2,FALSE) ) )","v":""},null,null,null,{"$f":"IF(TRIM(V11)=\"\", \"\", IF(VLOOKUP(V11,'Footnotes list'!$D$9:$E$107,2,FALSE)=0,\"\",VLOOKUP(V11,'Footnotes list'!$D$9:$E$107,2,FALSE) ) )","v":""},null,null,null,{"$f":"IF(TRIM(Z11)=\"\", \"\", IF(VLOOKUP(Z11,'Footnotes list'!$D$9:$E$107,2,FALSE)=0,\"\",VLOOKUP(Z11,'Footnotes list'!$D$9:$E$107,2,FALSE) ) )","v":""},null,null,null,{"$f":"IF(TRIM(AD11)=\"\", \"\", IF(VLOOKUP(AD11,'Footnotes list'!$D$9:$E$107,2,FALSE)=0,\"\",VLOOKUP(AD11,'Footnotes list'!$D$9:$E$107,2,FALSE) ) )","v":""}]
[null,"RW_IN","NCONIF",null,"1.1.3.1.2.20","         Non-coniferous wood, except tropical wood (02.20.12)",null,null,null,null,{"$f":"IF(TRIM(J12)=\"\", \"\", IF(VLOOKUP(J12,'Footnotes list'!$D$9:$E$107,2,FALSE)=0,\"\",VLOOKUP(J12,'Footnotes list'!$D$9:$E$107,2,FALSE) ) )","v":""},null,null,null,{"$f":"IF(TRIM(N12)=\"\", \"\", IF(VLOOKUP(N12,'Footnotes list'!$D$9:$E$107,2,FALSE)=0,\"\",VLOOKUP(N12,'Footnotes list'!$D$9:$E$107,2,FALSE) ) )","v":""},null,null,null,{"$f":"IF(TRIM(R12)=\"\", \"\", IF(VLOOKUP(R12,'Footnotes list'!$D$9:$E$107,2,FALSE)=0,\"\",VLOOKUP(R12,'Footnotes list'!$D$9:$E$107,2,FALSE) ) )","v":""},null,null,null,{"$f":"IF(TRIM(V12)=\"\", \"\", IF(VLOOKUP(V12,'Footnotes list'!$D$9:$E$107,2,FALSE)=0,\"\",VLOOKUP(V12,'Footnotes list'!$D$9:$E$107,2,FALSE) ) )","v":""},null,null,null,{"$f":"IF(TRIM(Z12)=\"\", \"\", IF(VLOOKUP(Z12,'Footnotes list'!$D$9:$E$107,2,FALSE)=0,\"\",VLOOKUP(Z12,'Footnotes list'!$D$9:$E$107,2,FALSE) ) )","v":""},null,null,null,{"$f":"IF(TRIM(AD12)=\"\", \"\", IF(VLOOKUP(AD12,'Footnotes list'!$D$9:$E$107,2,FALSE)=0,\"\",VLOOKUP(AD12,'Footnotes list'!$D$9:$E$107,2,FALSE) ) )","v":""}]
[null,"RW_IN","NC_TRO",null,"1.1.3.1.3.20","         Tropical wood (02.20.13)",null,null,null,null,{"$f":"IF(TRIM(J13)=\"\", \"\", IF(VLOOKUP(J13,'Footnotes list'!$D$9:$E$107,2,FALSE)=0,\"\",VLOOKUP(J13,'Footnotes list'!$D$9:$E$107,2,FALSE) ) )","v":""},null,null,null,{"$f":"IF(TRIM(N13)=\"\", \"\", IF(VLOOKUP(N13,'Footnotes list'!$D$9:$E$107,2,FALSE)=0,\"\",VLOOKUP(N13,'Footnotes list'!$D$9:$E$107,2,FALSE) ) )","v":""},null,null,null,{"$f":"IF(TRIM(R13)=\"\", \"\", IF(VLOOKUP(R13,'Footnotes list'!$D$9:$E$107,2,FALSE)=0,\"\",VLOOKUP(R13,'Footnotes list'!$D$9:$E$107,2,FALSE) ) )","v":""},null,null,null,{"$f":"IF(TRIM(V13)=\"\", \"\", IF(VLOOKUP(V13,'Footnotes list'!$D$9:$E$107,2,FALSE)=0,\"\",VLOOKUP(V13,'Footnotes list'!$D$9:$E$107,2,FALSE) ) )","v":""},null,null,null,{"$f":"IF(TRIM(Z13)=\"\", \"\", IF(VLOOKUP(Z13,'Footnotes list'!$D$9:$E$107,2,FALSE)=0,\"\",VLOOKUP(Z13,'Footnotes list'!$D$9:$E$107,2,FALSE) ) )","v":""},null,null,null,{"$f":"IF(TRIM(AD13)=\"\", \"\", IF(VLOOKUP(AD13,'Footnotes list'!$D$9:$E$107,2,FALSE)=0,\"\",VLOOKUP(AD13,'Footnotes list'!$D$9:$E$107,2,FALSE) ) )","v":""}]
[null,"RW_FW","TOTAL",null,"1.1.3.2.20","      Fuel wood ",null,null,null,null,{"$f":"IF(TRIM(J14)=\"\", \"\", IF(VLOOKUP(J14,'Footnotes list'!$D$9:$E$107,2,FALSE)=0,\"\",VLOOKUP(J14,'Footnotes list'!$D$9:$E$107,2,FALSE) ) )","v":""},null,null,null,{"$f":"IF(TRIM(N14)=\"\", \"\", IF(VLOOKUP(N14,'Footnotes list'!$D$9:$E$107,2,FALSE)=0,\"\",VLOOKUP(N14,'Footnotes list'!$D$9:$E$107,2,FALSE) ) )","v":""},{"$f":"IF(COUNT(H14,L14)=0,\"\",SUM(H14,L14))","v":""},null,null,{"$f":"IF(TRIM(R14)=\"\", \"\", IF(VLOOKUP(R14,'Footnotes list'!$D$9:$E$107,2,FALSE)=0,\"\",VLOOKUP(R14,'Footnotes list'!$D$9:$E$107,2,FALSE) ) )","v":""},null,null,null,{"$f":"IF(TRIM(V14)=\"\", \"\", IF(VLOOKUP(V14,'Footnotes list'!$D$9:$E$107,2,FALSE)=0,\"\",VLOOKUP(V14,'Footnotes list'!$D$9:$E$107,2,FALSE) ) )","v":""},null,null,null,{"$f":"IF(TRIM(Z14)=\"\", \"\", IF(VLOOKUP(Z14,'Footnotes list'!$D$9:$E$107,2,FALSE)=0,\"\",VLOOKUP(Z14,'Footnotes list'!$D$9:$E$107,2,FALSE) ) )","v":""},{"$f":"IF(COUNT(P14,T14,X14)=0,\"\",SUM(P14,T14,X14))","v":""},null,null,{"$f":"IF(TRIM(AD14)=\"\", \"\", IF(VLOOKUP(AD14,'Footnotes list'!$D$9:$E$107,2,FALSE)=0,\"\",VLOOKUP(AD14,'Footnotes list'!$D$9:$E$107,2,FALSE) ) )","v":""}]
[null,"RW_FW","CONIF",null,"1.1.3.2.20.1","         Fuel wood of coniferous wood (02.20.14)",null,null,null,null,{"$f":"IF(TRIM(J15)=\"\", \"\", IF(VLOOKUP(J15,'Footnotes list'!$D$9:$E$107,2,FALSE)=0,\"\",VLOOKUP(J15,'Footnotes list'!$D$9:$E$107,2,FALSE) ) )","v":""},null,null,null,{"$f":"IF(TRIM(N15)=\"\", \"\", IF(VLOOKUP(N15,'Footnotes list'!$D$9:$E$107,2,FALSE)=0,\"\",VLOOKUP(N15,'Footnotes list'!$D$9:$E$107,2,FALSE) ) )","v":""},null,null,null,{"$f":"IF(TRIM(R15)=\"\", \"\", IF(VLOOKUP(R15,'Footnotes list'!$D$9:$E$107,2,FALSE)=0,\"\",VLOOKUP(R15,'Footnotes list'!$D$9:$E$107,2,FALSE) ) )","v":""},null,null,null,{"$f":"IF(TRIM(V15)=\"\", \"\", IF(VLOOKUP(V15,'Footnotes list'!$D$9:$E$107,2,FALSE)=0,\"\",VLOOKUP(V15,'Footnotes list'!$D$9:$E$107,2,FALSE) ) )","v":""},null,null,null,{"$f":"IF(TRIM(Z15)=\"\", \"\", IF(VLOOKUP(Z15,'Footnotes list'!$D$9:$E$107,2,FALSE)=0,\"\",VLOOKUP(Z15,'Footnotes list'!$D$9:$E$107,2,FALSE) ) )","v":""},null,null,null,{"$f":"IF(TRIM(AD15)=\"\", \"\", IF(VLOOKUP(AD15,'Footnotes list'!$D$9:$E$107,2,FALSE)=0,\"\",VLOOKUP(AD15,'Footnotes list'!$D$9:$E$107,2,FALSE) ) )","v":""}]
[null,"RW_FW","NCONIF",null,"1.1.3.2.20.2","         Fuel wood of non-coniferous wood (02.20.15)",null,null,null,null,{"$f":"IF(TRIM(J16)=\"\", \"\", IF(VLOOKUP(J16,'Footnotes list'!$D$9:$E$107,2,FALSE)=0,\"\",VLOOKUP(J16,'Footnotes list'!$D$9:$E$107,2,FALSE) ) )","v":""},null,null,null,{"$f":"IF(TRIM(N16)=\"\", \"\", IF(VLOOKUP(N16,'Footnotes list'!$D$9:$E$107,2,FALSE)=0,\"\",VLOOKUP(N16,'Footnotes list'!$D$9:$E$107,2,FALSE) ) )","v":""},null,null,null,{"$f":"IF(TRIM(R16)=\"\", \"\", IF(VLOOKUP(R16,'Footnotes list'!$D$9:$E$107,2,FALSE)=0,\"\",VLOOKUP(R16,'Footnotes list'!$D$9:$E$107,2,FALSE) ) )","v":""},null,null,null,{"$f":"IF(TRIM(V16)=\"\", \"\", IF(VLOOKUP(V16,'Footnotes list'!$D$9:$E$107,2,FALSE)=0,\"\",VLOOKUP(V16,'Footnotes list'!$D$9:$E$107,2,FALSE) ) )","v":""},null,null,null,{"$f":"IF(TRIM(Z16)=\"\", \"\", IF(VLOOKUP(Z16,'Footnotes list'!$D$9:$E$107,2,FALSE)=0,\"\",VLOOKUP(Z16,'Footnotes list'!$D$9:$E$107,2,FALSE) ) )","v":""},null,null,null,{"$f":"IF(TRIM(AD16)=\"\", \"\", IF(VLOOKUP(AD16,'Footnotes list'!$D$9:$E$107,2,FALSE)=0,\"\",VLOOKUP(AD16,'Footnotes list'!$D$9:$E$107,2,FALSE) ) )","v":""}]
[]
[null,null,null,null,"INDUSE",null,null,"A02",null,null,null,"TOT_X_A02",null,null,null,"TOTAL",null,null,null,"P3_P5",null,null,null,"P7",null,null,null,"TU"]
[null,"Constants"]
[null,"UNIT","THS_M3",null,"Formulas for checking","Wood in the rough (02.20.1)",null,{"$f":"IF(COUNT(H10,H14)=0,\"\",SUM(H10,H14))","v":""},null,null,null,{"$f":"IF(COUNT(L10,L14)=0,\"\",SUM(L10,L14))","v":""},null,null,null,{"$f":"IF(COUNT(P10,P14)=0,\"\",SUM(P10,P14))","v":""},null,null,null,{"$f":"IF(COUNT(T10,T14)=0,\"\",SUM(T10,T14))","v":""},null,null,null,{"$f":"IF(COUNT(X10,X14)=0,\"\",SUM(X10,X14))","v":""},null,null,null,{"$f":"IF(COUNT(AB10,AB14)=0,\"\",SUM(AB10,AB14))","v":""}]
[null,"INDIC_FO","NAP",null,null,"Logs",null,{"$f":"IF(COUNT(H11,H12,H13)=0,\"\",SUM(H11,H12,H13))","v":""},null,null,null,{"$f":"IF(COUNT(L11,L12,L13)=0,\"\",SUM(L11,L12,L13))","v":""},null,null,null,{"$f":"IF(COUNT(P11,P12,P13)=0,\"\",SUM(P11,P12,P13))","v":""},null,null,null,{"$f":"IF(COUNT(T11,T12,T13)=0,\"\",SUM(T11,T12,T13))","v":""},null,null,null,{"$f":"IF(COUNT(X11,X12,X13)=0,\"\",SUM(X11,X12,X13))","v":""},null,null,null,{"$f":"IF(COUNT(AB11,AB12,AB13)=0,\"\",SUM(AB11,AB12,AB13))","v":""}]
[null,"STK_FLOW","USE",null,null,"Fuel wood ",null,{"$f":"IF(COUNT(H15,H16)=0,\"\",SUM(H15,H16))","v":""},null,null,null,{"$f":"IF(COUNT(L15,L16)=0,\"\",SUM(L15,L16))","v":""},null,null,null,{"$f":"IF(COUNT(P15,P16)=0,\"\",SUM(P15,P16))","v":""},null,null,null,{"$f":"IF(COUNT(T15,T16)=0,\"\",SUM(T15,T16))","v":""},null,null,null,{"$f":"IF(COUNT(X15,X16)=0,\"\",SUM(X15,X16))","v":""},null,null,null,{"$f":"IF(COUNT(AB15,AB16)=0,\"\",SUM(AB15,AB16))","v":""}]
[null,"FOR_ACC","NAP"]
[null,"SOURCE_TABLE","C_1B"]
[null,null,null,null,"NOTES:"]
[null,null,null,null,"- CPA Ver. 2.1 (2015) and NACE Rev. 2 (2008) codes are indicated in round brackets;"]
[null,null,null,null,"- Values in grey cells are priority information to be reported;"]
[null,null,null,null,"- Values in white cells are lower priority information."]
[]
[null,null,null,null,"Data sources:"]
[]
[]
[null,null,null,null,"Comments on the compilation of the table:"]

{"sheet":"ErrorLog","index":16,"n_rows":1,"n_cols":7,"rows_kept":1,"cut":false,"hidden":false,"merged":[]}
["Link to Error","Validation Rule","Cell","Sheet","Description","Severity","Former Color"]

{"sheet":"Changelog","index":17,"n_rows":12,"n_cols":7,"rows_kept":12,"cut":false,"hidden":true,"merged":[]}
["Change","Changed by","SheetName","Cell","Version","Date","REMARKS"]
["Adapt questionnaire to Waste standards","CDD","All",null,"v00m19","2021-06-01"]
["Add footnotes/flags columns (priority sheets)","CDD","All data sheets",null,"v01m19","2021-06-21","Sent to VV for comments"]
["Add footnotes/flags columns non-priority sheets)","CDD","All data sheets",null,"v02m19","2021-06-22"]
["Apply comments by VV.","CDD","All data sheets",null,"v03","2021-06-28","Delete macros, resolve comments in yellow from version V02m19. Add missing columns in table B 3a."]
["Apply new comments by VV (mail 30/07/2021)","CDD","Several sheets",null,"v04m19","2021-08-02","- Worksheet INDEX: \no We should probable remove table A1b (land in monetary) from the list of core tables. Reason: in the legislative proposal that we are working on and which is based on EFA, this table is not included among ‘core’ (upon request by MS). I think the easiest way would be just to change the colour coding, the position of the table could stay the same. (any views on this?)\no Cell D24 – name of table seems unfinished in the hyperlink\no Cell C30 – should read ‘TABLES C1 - PHYSICAL SUPPLY AND USE OF WOOD IN THE ROUGH’\no Cell C33 – error log – this functionality would be very helpful if feasible to implement in the time we have\n- Worksheet basic instruction:\no Row 51 needs expanding (make it higher) as the last word is missing (not visible).\no Row 65: ‘Please do not report footnotes that elaborate on e.g. source data and compilation methods; these are to be described in the quality report and the metadata sheets.’ – this would be best practice; however, EFA does not have QR or country metadata sheet (and we will might not be ready with them by the launch of the 2022 EFA data collection) – to be discussed with Monika\no All text under the heading Definitions – could you please flag it ‘for further development; for now? The issue is that 1) those references actually use different definitions for some assets; 2) we are probably moving to FAO-FRA 2020 in the legal act (which makes almost no practical difference in terms of content, but still to have a recent reference); and 3) in reality, the SEEA Agriculture and forestry uses the definitions of SEEA Central framework, so that reference can be deleted from definitions; 4) we keep referring to CPA 2015 in EFA; however that does not seem to be the correct reference. It should read CPA ver.2.1 CPA Ver. 2.1 - CPA - Eurostat (europa.eu)\no Row 80: I don’t understand why XXXXX_EFADATA_A – is it not EFA_ACC_A? (in any case, we should align with ongoing work on the legal act. There A&A are proposing to call it only “forest accounts” – so we could drop the E from the acronym (?)\no Row 94: the hyperlink leads to the “waste” methodology” \no Row 96: this info is best practice; however, for now we do not have an EFA manual, hence we need to put this text about guidelines on hold. We will add it once EFA manual is ready \no All Tables A except for 1Ab (i.e. except for the one that is not core anymore), we will need to change the colour coding – grey, to align with the new legal act. Grey cells would be as follows:\nDescription  \n Opening area (December t-1)\n   Forest  \n     Forest available for wood supply  \n     Forest not available for wood supply  \n   Other wooded land  \n     Of which available for wood supply  \n   Other land with tree cover available for wood supply *1  \no In table A1b all cells would be white (as lower priority). Cell with formulas would remain dotted (but white, not grey).\no Table A2a – row 31, footnote 5 removals – could you please flag it for further development? We say removals are like in JFSQ; however, JFSQ is underbark, hence we probably need to add a statement “conversion to overbark is needed, if applicable” or something along those lines.\n\n"]
["Add macros version 19",null,null,null,"v04m19"]
["Start Validation sheets (SSS) definitions","CDD, VV",null,null,"v04m19","2021-08-03"]
["Apply remaining outstanding comments that are feasible from short term and important.","VV","Basic instructions","Table of contents (row 13-20) and row 82","v04m19","2021-09-23","Table of contents corrected; text explaining how to report reference year in EDAMIS added"]
["Uppercase in source_table codes","CDD","EFA B 3a, EFA B3b","C26","V07m19","2022-05-05","Codes cannot contain lower case character. Reported by B1."]
["Final questionnaire - corrected hyperlinks in idxed, added metadata, update of basic instructions","VV",null,null,"v08m19","2022-06-20","this version was tested in EDAMIS and used for reporting in 2022"]
["Error on Summation SSS","CDD","H37 is not equal to H36+H38+H39","Summations","V09m19","2022-06-28","The line was deleted from the SSS; uploaded in the website for reporting 2022"]

{"sheet":"Lists","index":18,"n_rows":42,"n_cols":11,"rows_kept":42,"cut":false,"hidden":true,"merged":[[1,9,1,10],[5,9,5,10],[10,9,10,10],[15,9,15,10]]}
["Country label","Country code","Currency","Valid flags (obs_status)","Label",null,"Valid flags (obs_conf)","Label",null,"Textual variables","String"]
["Belgium","BE","EUR","B","break in time series",null,"C","confidential",null,"Institutional names"]
["Bulgaria","BG","BGN","E","estimated data",null,"D","secondary confidentiality set by the sender",null,"Eurostat Text","Statistical Office of the European Union"]
["Czechia","CZ","CZK","P","provisional",null,null,null,null,"Directorate Text","Directorate E: Sectoral and regional statistics"]
["Denmark","DK","DKK","BE",null,null,null,null,null,"Unit Text","Unit E-2: Environmental statistics and accounts; sustainable development"]
["Germany","DE","EUR","BP",null,null,null,null,null,"Data collection information"]
["Estonia","EE","EUR","EP",null,null,null,null,null,"Data Collection Title","European Forest Accounts"]
["Ireland","IE","EUR","BEP",null,null,null,null,null,"Data Collection Year",2022]
["Greece","EL","EUR",null,null,null,null,null,null,"Launching date","21 June 2022"]
["Spain","ES","EUR",null,null,null,null,null,null,"Submission deadline","18 July 2022 and 19 September 2022"]
["France","FR","EUR",null,null,null,null,null,null,"EDAMIS data"]
["Croatia","HR","HRK",null,null,null,null,null,null,"Domain name","EFA"]
["Italy","IT","EUR",null,null,null,null,null,null,"Dataset name","EFA_ACC_A"]
["Cyprus","CY","EUR",null,null,null,null,null,null,"Web page","https://webgate.ec.europa.eu/edamis/helpcenter/website/index.htm"]
["Latvia","LV","EUR",null,null,null,null,null,null,"Functional e-mail","estat-support-edamis@ec.europa.eu"]
["Lithuania","LT","EUR",null,null,null,null,null,null,"E2 information"]
["Luxembourg","LU","EUR",null,null,null,null,null,null,"Telephone","(+352) 4301 33213"]
["Hungary","HU","HUF",null,null,null,null,null,null,"Contact","ESTAT-FORESTACCOUNTS@EC.EUROPA.EU"]
["Malta","MT","EUR",null,null,null,null,null,null,"Methodology URL","http://ec.europa.eu/eurostat/web/forestry/methodology"]
["Netherlands","NL","EUR",null,null,null,null,null,null,"Legislation URL","https://ec.europa.eu/eurostat/web/xxxxx/legislation"]
["Austria","AT","EUR"]
["Poland","PL","PLN"]
["Portugal","PT","EUR"]
["Romania","RO","RON"]
["Slovenia","SI","EUR"]
["Slovakia","SK","EUR"]
["Finland","FI","EUR"]
["Sweden","SE","SEK"]
["United Kingdom","UK","GBP"]
["Iceland","IS","ISK"]
["Liechtenstein","LI","CHF"]
["Norway","NO","NOK"]
["Switzerland","CH","CHF"]
["Montenegro","ME","EUR"]
["North Macedonia","MK","MKD"]
["Albania","AL","ALL"]
["Serbia","RS","RSD"]
["Turkey","TR","TRY"]
["Bosnia and Herzegovina","BA","BAM"]
["Kosovo (UNSCR 1244)","XK","EUR"]
[]
["TEST","CDD"]

{"sheet":"Mandatory","index":19,"n_rows":4,"n_cols":9,"rows_kept":4,"cut":false,"hidden":true,"merged":[]}
["Severity","SheetName","Top Left Cell","Bottom Right Cell","Row Step","Column Step","Empty Is Valid If Footnote Exists","Footnote Shift From Value"]
["Error","GETTING STARTED","E9","E10",1,999,"NO",999]
["Error","GETTING STARTED","D15","D17",2,999,"NO",999]
["Error","GETTING STARTED","D23","D23",2,999,"NO",999,"Notice \"Telephone\" and \"unit \" are not mandatory"]

{"sheet":"Summations","index":20,"n_rows":133,"n_cols":13,"rows_kept":133,"cut":false,"hidden":true,"merged":[[34,5,34,6]]}
["Severity","Sheet Name","List of Cells\n (first block)","First Total Cell (first block)","Last Total Cell\n(Last block)","Row Block Repetition Step","Column Block Repetition Step","Greater or Equal","Valid Tolerance","Only if all data is available","Non compliance Is Valid If Footnote Exists","Footnote Shift From Value","Display text in error"]
["Error","EFA A 1a","H10,H11","H9","T9",999,4,"EQ",0.1,"YES","NO",3,"Value for Forest must be equal to the sum of values for FAWS and FNAWS"]
["Error","EFA A 1a","AB10,AB11","AB9","AB9",999,999,"EQ",0.1,"YES","NO",3,"Value for Forest must be equal to the sum of values for FAWS and FNAWS"]
["Error","EFA A 1a","H13","H12","T12",999,4,"GE",0.1,"YES","NO",3,"Value for Other Wooded Land must be greater or equal to OWLAWS"]
["Error","EFA A 1a","AB13","AB12","AB12",999,4,"GE",0.1,"YES","NO",3,"Value for Other Wooded Land must be greater or equal to OWLAWS"]
["Error","EFA A 1b","H10,H11","H9","X9",999,4,"EQ",0.1,"YES","NO",3,"Value for Forest must be equal to the sum of values for FAWS and FNAWS"]
["Error","EFA A 1b","AF10,AF11","AF9","AF9",999,999,"EQ",0.1,"YES","NO",3,"Value for Forest must be equal to the sum of values for FAWS and FNAWS"]
["Error","EFA A 1b","H13","H12","X12",999,4,"GE",0.1,"YES","NO",3,"Value for Other Wooded Land must be greater or equal to OWLAWS"]
["Error","EFA A 1b","AF13","AF12","AF12",999,4,"GE",0.1,"YES","NO",3,"Value for Other Wooded Land must be greater or equal to OWLAWS"]
["Error","EFA A 2a","H10,H11","H9","X9",999,4,"EQ",0.1,"YES","NO",3,"Value for Forest must be equal to the sum of values for FAWS and FNAWS"]
["Error","EFA A 2a","AF10,AF11","AF9","AF9",999,999,"EQ",0.1,"YES","NO",3,"Value for Forest must be equal to the sum of values for FAWS and FNAWS"]
["Error","EFA A 2a","H13","H12","X12",999,4,"GE",0.1,"YES","NO",3,"Value for Other Wooded Land must be greater or equal to OWLAWS"]
["Error","EFA A 2a","AF13","AF12","AF12",999,4,"GE",0.1,"YES","NO",3,"Value for Other Wooded Land must be greater or equal to OWLAWS"]
["Error","EFA A 2b","H10,H11","H9","AB9",999,4,"EQ",0.1,"YES","NO",3,"Value for Forest must be equal to the sum of values for FAWS and FNAWS"]
["Error","EFA A 2b","AJ10,AJ11","AJ9","AJ9",999,999,"EQ",0.1,"YES","NO",3,"Value for Forest must be equal to the sum of values for FAWS and FNAWS"]
["Error","EFA A 2b","H13","H12","AB12",999,4,"GE",0.1,"YES","NO",3,"Value for Other Wooded Land must be greater or equal to OWLAWS"]
["Error","EFA A 2b","AJ13","AJ12","AJ12",999,4,"GE",0.1,"YES","NO",3,"Value for Other Wooded Land must be greater or equal to OWLAWS"]
["Error","EFA B 1","H11,H19,H20,H21","H9","H9",999,999,"EQ",0.1,"YES","NO",3,"Total Output must be equal to the sum of subitems (1.1 + 1.2 + 1.3 + 1.4)"]
["Error","EFA B 1","H12,H15,H18","H11","H11",999,999,"EQ",0.1,"YES","NO",3,"Output of goods must be equal to the sum of subitems (1.1.1 + 1.1.2 + 1.1.4)"]
["Error","EFA B 1","H13,H14","H12","H12",999,999,"EQ",0.1,"YES","NO",3,"Output of Trees, tree plants and forest tree seeds must be equal to the sum of subitems (1.1.1.1 + 1.1.1.2)"]
["Error","EFA B 1","H16,H17","H15","H15",999,999,"EQ",0.1,"YES","NO",3,"Output of Wood in the rough must be equal to the sum of subitems (1.1.2.1 + 1.1.2.2)"]
["Error","EFA B 1","H23,H28,H33","H22","H22",999,999,"EQ",0.1,"YES","NO",3,"Intermediate consumption must be equal to the sum of subitems (2.1 + 2.2 + 2.3)"]
["Error","EFA B 1","H24,H25,H26,H27","H23","H23",999,999,"EQ",0.1,"YES","NO",3,"Intermediate consumption of goods must be equal to the sum of subitems (2.1.1 + 2.1.2 + 2.1.3 + 2.1.4)"]
["Error","EFA B 1","H29,H30,H31,H32","H28","H28",999,999,"EQ",0.1,"YES","NO",3,"Intermediate consumption of services must be equal to the sum of subitems (2.2.1 + 2.2.2 + 2.2.3 + 2.2.4)"]
["Error","EFA B 1","H34,H22 ","H9","H9",999,999,"EQ",0.1,"YES","NO",3,"Output must be equal to the sum of intermediate consumption and GVA"]
["Error","EFA B 1","H35,H36","H34","H34",999,999,"EQ",0.1,"YES","NO",3,"GVA must be equal to the sum of net value added and consumption of fixed capital"]
["Error","EFA B 1","H40,H41","H39","H39",999,999,"EQ",0.1,"YES","NO",3,"Factor income must be equal to the subitems 4.1 + 5"]
["Error","EFA B 1","H41,H42","H43","H43",999,999,"EQ",0.1,"YES","NO",3,"Net entrepreneurial income must be equal to the sum of 5 + 5.1"]
["Error","EFA B 1","H45,H46,H47,H48","H44","H44",999,999,"EQ",0.1,"YES","NO",3,"Gross fixed capital formation must be equal to the sum of subitems 6.1 + 6.2 + 6.3 + 6.4"]
["Error","EFA B 1","H49,H35","H44","H44",999,999,"EQ",0.1,"YES","NO",3,"Gross fixed capital formation must be equal to the sum of the subitems 7 + 3.1"]
["Error","EFA B 1","H51,H52","H50","H50",999,999,"EQ",0.1,"YES","NO",3,"Changes in inventories must be equal to the sum of the subitems 8.1 + 8.2"]
["Error","EFA B 1","H59","H56","H56",999,999,"GE",0.1,"YES","NO",3,"Employment of self-employed must be smaller or equal than total labour input"]
[]
[]
[null,null,null,null,null,"Must be > 0 for a not relevant dimension. Else you get an infinite loop",null,"EQ or GE or GT","GT does not admit Tolerance","NO or YES",null,"Not Applicable if the previous column is \"NO\""]
["Error","EFA B 1","H36,H38,H39","H37","H37",999,999,"EQ",0.1,"YES","NO",3,"Factor income must be equal to the subitems 3.2 - 3.2.1 + 3.2.2 ////// ERROR!!!!! Corrected on 28-6-2022"]
["DESCRIPTION"]
["This sheet is meant to define the validation for summations in a row or in a column."]
["- A block is defined as a sequence of addendums in the same row or column"]
["- Only the first block must be explicitly defined"]
["- The block can be repeated at regular patterns through rows and columns at the same time"]
[]
[]
["PARAMETRES"]
["SheetName",null,"Name of the sheet to be validated (e.g. Table 1)"]
["List of Cells\n (first block)",null,"First cell in the first block to be validated"]
["First TotalCell (first block)"]
["Last TotalCell (Last block)"]
["Row Block Repetition Step"]
["Column Block Repetition Step"]
["Greater or Equal"]
["Valid Threshold"]
["Only if all data is available"]
["Display text in error",null,"Valid values: EQ (Strictly equal); GE (Greater or Equal); GT (Strictly greater - No threshold will be considered)"]
[]
[]
[]
[]
[]
[]
[]
[]
[]
[]
[]
[]
[]
[]
[]
[]
[]
[]
[]
[]
[]
[]
[]
[]
[]
[]
[]
[]
[]
[]
[]
[]
[]
[]
[]
[]
[]
[]
[]
[]
[]
[]
[]
[]
[]
[]
[]
[]
[]
[]
[]
[]
[]
[]
[]
[]
[]
[]
[]
[]
[]
[]
[]
[]
[]
[]
[]
[]
[]
[]
[]
[]
[]
[]
[]
[]
[]
[]
[null,null,null,{"$f":"SUM(Summations!B3º)","v":{"$error":"#NAME?"}}]

{"sheet":"MustNotBeNegative","index":21,"n_rows":5,"n_cols":6,"rows_kept":5,"cut":false,"hidden":true,"merged":[]}
["Severity","SheetName","TopLeftCell","BottomRightCell","RowStep","ColumnStep"]
["Error","EFA A 1a","P9","P14",1,999]
["Error","EFA A 1b","P9","P14",1,999]
["Error","EFA A 2a","P9","T14",1,4]
["Error","EFA A 2b","P9","T14",1,4]